Cogmind - Beta 14 @@@ ROGUE MODE // 2024.08.16 @ 01:15:26 Player: Savant Result: Fortifying 0b10! Performance ------------- Evolutions (9) 4500 Regions Visited (26) 5200 Robots Destroyed (324) 1620 Value Destroyed (22157) 22157 Prototype IDs (116) 2320 Alien Tech Used (12) 2400 Bonus (32858) 32858 TOTAL SCORE: 71055 Bonus ------- High Alert Combat Kills 6509 Follower Combat Kills 8250 Network Hubs Disabled 600 Delivered SUBCON Basin 2000 Registered with UFD 300 Met Imprinter 300 Met Warlord at Base 500 MAIN.C Attacked Warlord 500 Built Enhanced Grunts 300 A7 Reached Mainframe 300 Met R17 at Cetus 500 Scanned by Researcher 500 Pursued by Intercept 1000 Met MAIN.C 5000 Destroyed MAIN.C Shell 5000 Win 3000 Friendly Fire -1701 Cogmind --------- Core Integrity 99/2100 Matter 207/300 Energy 2400/2400 System Corruption 11% Temperature Cool (0) Movement Rolling (160) Ox9 Location By MAIN.C's Side Parts ------- > --- POWER (3) -------- Improved Quantum Reactor Vortex Chain Reactor > --- PROPULSION (9) --- Experimental Biometal Medium Treads Experimental Biometal Medium Treads Biometal Leg Biometal Leg High-density Centrium Leg High-density Centrium Leg Experimental Biometal Leg Overtuned Huge Scrapsphere > --- UTILITY (12) ----- Experimental Cooling System Huge Storage Unit Experimental Energy Well Experimental Energy Well Advanced Targeting Computer Experimental Targeting Computer Energy Filter Experimental Weapon Cycler Centrium Medium Armor Plating Centrium Medium Armor Plating Graphene Brace > --- WEAPON (2) ------- Null Cannon Graviton Cannon > --- INVENTORY (25) --- Improved Quantum Reactor Experimental Energy Well (600) Experimental Matter Compressor (500) Spacefold Activator Compact HERF Cannon Enhanced Nova Cannon Improved Potential Cannon Sigix Shearcannon Heavy Hardcell Cannon Graviton Cannon Graviton Cannon Hellfire Missile Launcher CPS Tube (2) Multitool Heat Bomb Trap Peak State ------------ > --- POWER ------------ Zero-point Reactor Vortex Chain Reactor > --- PROPULSION ------- Experimental Biometal Medium Treads Experimental Biometal Medium Treads Biometal Leg Biometal Leg High-density Centrium Leg High-density Centrium Leg Experimental Biometal Leg Overtuned Huge Scrapsphere > --- UTILITY ---------- Experimental Cooling System Huge Storage Unit Advanced Targeting Computer Experimental Targeting Computer Experimental Core Analyzer Energy Filter Experimental Weapon Cycler Experimental Core Shielding Centrium Medium Armor Plating Centrium Heavy Armor Plating Graphene Brace > --- WEAPON ----------- Improved Potential Cannon > --- INVENTORY -------- Improved Quantum Reactor Improved Quantum Reactor Experimental Energy Well Experimental Energy Well Experimental Energy Well Experimental Matter Compressor Centrium Medium Armor Plating Spacefold Activator Compact HERF Cannon Enhanced Nova Cannon Null Cannon Sigix Shearcannon Heavy Hardcell Cannon Graviton Cannon Graviton Cannon Graviton Cannon Hellfire Missile Launcher CPS Tube Multitool Heat Bomb Trap [Rating: 239] Favorites ----------- Power Quantum Reactor Engine Subdweller Power Source Power Core Enhanced Fission Core Reactor Quantum Reactor Propulsion Overtuned Huge Scrapsphere Treads Improved Heavy Treads Leg Myomer Leg Wheel Overtuned Huge Scrapsphere Hover Unit Combat Antigrav System Flight Unit Field Propulsion Array Utility Tech Extrapolator Device Scrap Suit Storage Huge Storage Unit Processor Tech Extrapolator Hackware Improved Hacking Suite Protection Improved Medium Armor Plating Artifact Spacefold Activator Weapon Overtuned Beamcaster Energy Gun Overtuned Beamcaster Energy Cannon Cooled Particle Cannon Ballistic Gun Overtuned Coil Gun Ballistic Cannon Compact Mass Driver Launcher Heavy Rocket Launcher Special Weapon Remote Datajack Impact Weapon Powered Hammer Slashing Weapon Greatsword Special Melee Weapon Improved Datajack Build | -11 -10 -10 -9 -9 -6 -6 -6 -6 -5 -5 -5 -5 -5 -5 -4 -4 -4 -4 -3 -3 -3 -2 -2 -2 -1 -1 ------- Run | Yrd Mat Sub Rec Scr Fac Low Low Zio Pro Fac Ext Cet Arc Hub Fac Upp Upp War Pro Res Tes Res Qua Sec Acc Com Slots Evolved 18 | . . . . . 8 . . . . 2 . . . . 2 . . . . 2 . 2 . . 2 . Power 2 | . . . . . . . . . . . . . . . . . . . . 1 . . . . 1 . Propulsion 7 | . . . . . 2 . . . . . . . . . 2 . . . . 1 . 1 . . 1 . Utility 9 | . . . . . 5 . . . . 2 . . . . . . . . . . . 1 . . 1 . Weapon . | . . . . . 1 . . . . . . . . . . . . . . . . . . . -1 . Parts Attached 819 | 7 18 52 1 19 55 15 10 5 10 51 36 12 20 58 39 2 1 16 1 21 68 45 12 98 77 70 Power 58 | 1 2 4 . 2 3 . 1 . . 2 1 1 2 1 5 . . . . 4 1 2 1 4 16 5 Engine 12 | 1 2 4 . 2 . . 1 . . . . . . . 1 . . . . 1 . . . . . . Core 7 | . . . . . 2 . . . . 2 1 . . . . . . . . . 1 . 1 . . . Reactor 39 | . . . . . 1 . . . . . . 1 2 1 4 . . . . 3 . 2 . 4 16 5 Propulsion 106 | 2 . 14 . 9 9 . . . . 1 3 . 3 1 9 . . 4 . 2 7 4 . 15 13 10 Treads 22 | 2 . 2 . 3 4 . . . . . 2 . 2 . . . . . . . . . . . 3 4 Leg 14 | . . . . . . . . . . . . . . . . . . 1 . . . . . . 7 6 Wheel 28 | . . 12 . 6 5 . . . . 1 1 . 1 . . . . . . . . . . . 2 . Hover 30 | . . . . . . . . . . . . . . . 2 . . 2 . . 7 4 . 15 . . Flight 12 | . . . . . . . . . . . . . . 1 7 . . 1 . 2 . . . . 1 . Utility 357 | 2 7 14 1 3 18 12 3 3 8 34 19 2 9 40 18 2 . 9 1 11 29 25 5 39 15 28 Device 246 | 1 4 6 1 1 10 10 3 3 7 30 15 1 7 31 10 2 . 5 1 7 20 19 4 21 12 15 Storage 26 | 1 1 2 . 1 1 1 . . 1 1 2 . . 2 1 . . . . 2 5 1 . . . 4 Processor 13 | . 1 . . 1 2 . . . . . . . . 1 3 . . 1 . . . 1 . 2 . 1 Hackware 9 | . . . . . 1 . . . . 1 . . . 1 2 . . 1 . 1 . . . . . 2 Protection 52 | . 1 6 . . 4 1 . . . 2 2 1 2 5 2 . . 2 . 1 4 4 1 8 1 5 Artifact 11 | . . . . . . . . . . . . . . . . . . . . . . . . 8 2 1 Weapon 298 | 2 9 20 . 5 25 3 6 2 2 14 13 9 6 16 7 . 1 3 . 4 31 14 6 40 33 27 Energy Gun 42 | . 3 . . . 5 1 3 1 1 5 . . . . 3 . . 1 . . 5 1 1 9 3 . Energy Cannon 95 | . . 1 . 1 5 1 . . . 3 6 2 . . . . . . . 2 16 3 2 15 19 19 Ballistic Gun 55 | 2 2 13 . 1 3 1 . . . 2 1 3 4 8 1 . . . . . . 4 1 8 1 . Ballistic Cannon 19 | . . . . . . . . . . . . . . . . . . . . . 3 4 . 2 4 6 Launcher 19 | . 2 2 . . 2 . 2 . 1 2 . 3 . 1 . . . . . . . . 1 . 2 1 Special Weapon 45 | . 2 4 . . 7 . 1 1 . 1 4 1 1 2 1 . . . . 1 5 2 1 6 4 1 Impact Weapon 4 | . . . . 1 3 . . . . . . . . . . . . . . . . . . . . . Slashing Weapon 14 | . . . . . . . . . . 1 2 . 1 4 1 . 1 1 . 1 2 . . . . . Piercing Weapon . | . . . . . . . . . . . . . . . . . . . . . . . . . . . Special Melee Weapon 5 | . . . . 2 . . . . . . . . . 1 1 . . 1 . . . . . . . . Unidentified Prototypes 55 | . . . . . 2 . . 1 . 3 1 2 1 2 3 . . 7 . 1 9 . 1 7 1 14 Corrupted Parts 4 | . . . . . . . . . . . . . 4 . . . . . . . . . . . . . System Corruption 15 | . . . . . . . . . . . . . 15 . . . . . . . . . . . . . Parts Lost 84 | . . 6 . . . 1 . . . 4 . . . 11 7 . . . . . 1 . 1 14 21 18 Power 16 | . . 2 . . . . . . . . . . . 1 . . . . . . 1 . . 3 6 3 Propulsion 27 | . . 3 . . . . . . . 1 . . . . 2 . . . . . . . . 6 9 6 Utility 29 | . . 1 . . . . . . . 1 . . . 6 3 . . . . . . . . 5 4 9 Weapon 12 | . . . . . . 1 . . . 2 . . . 4 2 . . . . . . . 1 . 2 . Highest Loss Streak 8 | . . 1 . . . 1 . . . 1 . . . 8 3 . . . . . 1 . 1 6 8 7 To Critical Strikes 1 | . . . . . . . . . . . . . . . 1 . . . . . . . . . . . Average Slot Usage (%) 82 | . 99 90 100 100 79 73 73 73 72 69 70 74 75 74 68 84 83 80 84 78 88 91 94 91 71 70 Engine 4 | . 14 13 14 14 . . . 6 6 1 . . . . . . . . . . . . . . . . Core 1 | . . . . . 5 . . . . 3 5 1 . . . . . . . . 2 4 3 3 . . Reactor 2 | . . . . . . 6 5 . . . . 3 5 4 3 5 5 5 5 6 6 4 4 4 8 8 Treads 6 | . 28 13 . 8 6 6 6 6 6 4 . . 3 4 . . . . . . . . . . 2 9 Wheel 7 | . . 14 28 19 6 6 6 6 6 5 10 11 6 4 . . . . . . . . . . 3 3 Hover 3 | . . . . . . . . . . . . . . . . . . 2 5 . 19 30 34 33 8 . Flight 1 | . . . . . . . . . . . . . . . 11 15 15 15 15 19 6 . . . . . Device 10 | . 10 4 14 . 10 13 13 13 12 13 16 21 23 24 16 10 10 7 4 3 3 4 7 5 11 18 Storage 6 | . 14 5 14 13 6 6 6 6 6 5 5 5 5 5 . 5 5 5 5 4 4 4 4 4 3 3 Processor 7 | . . . . 13 8 6 6 6 6 5 5 5 5 2 12 10 10 12 15 14 13 8 8 9 13 8 Hackware 4 | . . . . . 4 . . . . 3 . . . . 10 15 15 17 21 19 19 17 17 15 2 . Protection 4 | . 3 10 . . 5 6 6 6 5 5 4 5 4 6 . 5 5 2 . . . 3 . 1 . 3 Energy Gun 3 | . 8 . . . 5 10 12 9 12 6 . . . . 4 5 4 . . . 2 4 3 2 . . Energy Cannon 4 | . . 4 14 8 5 7 6 6 6 5 4 5 . . . . . . . 3 2 3 3 3 4 3 Ballistic Gun 6 | . 18 21 14 7 5 . . . . 3 11 8 13 15 . 5 4 . . . . . . . . . Peak Build Rating 239 | 7 8 35 34 33 91 91 91 93 89 112 109 118 124 128 140 117 117 126 124 147 181 210 211 223 217 239 Average Rating 94 | 4 7 15 22 26 82 87 87 86 86 103 105 113 119 122 121 116 116 118 123 138 161 195 203 199 179 191 On Entrance 103 | . 7 8 34 18 32 91 90 85 89 89 110 106 118 123 98 116 117 113 122 124 144 171 199 211 177 190 Naked Turns . | . . . . . . . . . . . . . . . . . . . . . . . . . . . Heaviest Build 267 | 12 31 99 99 105 131 247 243 238 240 265 263 267 259 267 44 44 42 43 33 52 90 117 117 119 160 194 Greatest Support 140 | 40 40 40 10 28 28 20 20 20 20 40 40 40 40 24 43 43 43 43 36 51 100 116 116 118 140 140 Greatest Overweight (x) 84 | . . 9 9 9 6 12 12 11 11 13 13 6 84 13 1 1 . . . 1 1 1 1 1 7 9 Average Overweight (x) 3 | . . 1 9 5 5 11 11 11 11 11 6 6 13 11 . . . . . . . . . . 1 6 Largest Inventory Capacity 35 | 8 15 25 25 25 35 35 35 35 35 35 35 35 35 35 10 10 10 10 10 15 20 20 20 20 20 25 Average Capacity 24 | 6 12 11 25 24 25 34 35 35 35 35 35 35 35 33 5 10 10 10 10 10 14 20 20 20 20 22 Most Carried 35 | 5 15 25 25 25 25 33 35 35 35 35 35 35 35 35 6 10 10 10 10 10 20 20 20 20 20 25 Average Carried 23 | 3 11 10 17 22 24 31 34 35 34 34 34 34 34 33 5 7 10 9 10 9 14 19 19 19 18 20 Final Capacity 35 | 8 15 25 25 25 25 35 35 35 35 35 35 35 35 5 10 10 10 10 10 10 20 20 20 20 20 25 Final Carried 35 | 4 15 25 15 25 25 33 35 35 35 33 35 35 35 5 6 10 10 10 10 10 20 20 20 19 20 18 Class Distribution -------------------- 23% | Hauler-Scrapper 21% | Mutant 18% | Commander-Scrapper 11% | Wizard-Scout 10% | Scavenger-Mutant 3% | Hacker-Mutant Dominant Class ---------------- Mutant | -10/Materials Mutant | -10/Subcaves Scavenger-Mutant | -9/Recycling Mutant | -9/Scraptown Commander-Scrapper | -6/Factory Hauler-Scrapper | -6/Lower Caves Hauler-Scrapper | -6/Lower Caves Hauler-Scrapper | -6/Zion Hauler-Scrapper | -5/Proximity Caves Commander-Scrapper | -5/Factory Hauler-Scrapper | -5/Extension Commander-Scrapper | -5/Cetus Commander-Scrapper | -5/Archives Hauler-Scrapper | -5/Hub_04(d) Hacker-Ninja | -4/Factory Hacker-Mutant | -4/Upper Caves Hacker-Mutant | -4/Upper Caves Hacker-Gladiator | -4/Warlord Wizard-Scout | -3/Proximity Caves Wizard-Scout | -3/Research Wizard-Scout | -3/Testing Wizard-Scout | -2/Research Wizard-Scout | -2/Quarantine Wizard-Scout | -2/Section 7 Scavenger-Mutant | -1/Access Scavenger-Mutant | -1/Command Resources | -11 -10 -10 -9 -9 -6 -6 -6 -6 -5 -5 -5 -5 -5 -5 -4 -4 -4 -4 -3 -3 -3 -2 -2 -2 -1 -1 ----------- Run | Yrd Mat Sub Rec Scr Fac Low Low Zio Pro Fac Ext Cet Arc Hub Fac Upp Upp War Pro Res Tes Res Qua Sec Acc Com Matter Collected 14310 | 231 396 850 28 180 867 198 226 181 188 886 818 183 651 1606 363 61 10 96 63 221 650 629 85 1839 972 1832 Remotely 873 | . . . . . . . . . . 195 215 . . 463 . . . . . . . . . . . . Salvage Created 17002 | 12 603 827 . . 1613 458 112 . 216 1135 582 520 361 863 . . . . . 86 694 678 126 2637 2722 2757 Parts 752 | 2 40 57 . . 75 13 9 . 5 48 26 18 35 39 . . . . . 10 27 44 9 138 107 50 Haulers Intercepted 4 | . . . . . 1 . . . . 1 . . . . . . . . . . 1 . . . 1 . Recyclers Shooed 4 | 1 . . . . . . . . . 1 1 . . . . . . . . . . 1 . . . . Parts Field Recycled . | . . . . . . . . . . . . . . . . . . . . . . . . . . . Retrieved Matter . | . . . . . . . . . . . . . . . . . . . . . . . . . . . Parts Self-Destructed 52 | . . 19 . . . 14 5 . 12 . . . . . . . 2 . . . . . . . . . Prevented 1 | . . . . . . . . . 1 . . . . . . . . . . . . . . . . . Kills | -11 -10 -10 -9 -9 -6 -6 -6 -6 -5 -5 -5 -5 -5 -5 -4 -4 -4 -4 -3 -3 -3 -2 -2 -2 -1 -1 ------- Run | Yrd Mat Sub Rec Scr Fac Low Low Zio Pro Fac Ext Cet Arc Hub Fac Upp Upp War Pro Res Tes Res Qua Sec Acc Com Combat Hostiles Destroyed 252 | . 18 23 . . 22 7 7 . 7 20 6 6 1 14 . . . . . . 1 8 . 33 38 41 Melee 1 | . . . . . 1 . . . . . . . . . . . . . . . . . . . . . Guns 107 | . 12 15 . . 10 4 1 . 1 8 5 . 1 14 . . . . . . 1 7 . 24 4 . Cannons 70 | . . 4 . . 4 2 . . 1 5 1 . . . . . . . . . . . . 9 23 21 AOE 52 | . 6 4 . . 6 . 6 . 4 6 . 2 . . . . . . . . . . . . 7 11 Classes Destroyed 27 | 1 6 2 . . 6 . 1 . 1 3 . . . . . . . . . . . . . 3 2 2 Worker 7 | . 1 . . . 2 . . . . 1 . . . 1 . . . . . . . . . . . 2 Builder 21 | . . . . . 8 . . . . 1 1 . . 1 . . . . . 2 1 1 . 1 5 . Tunneler 2 | 1 . . . . 1 . . . . . . . . . . . . . . . . . . . . . Hauler 4 | . . . . . 1 . . . . 1 . . . . . . . . . . 1 . . . 1 . Recycler 10 | . 1 . . . 2 . . . . . 1 . . . . . . . . . 3 . . 1 1 1 Mechanic 1 | . . . . . . . . . . 1 . . . . . . . . . . . . . . . . Operator 10 | . 1 . . . 1 . . . . . . . 7 . . . . . . . . . 1 . . . Drone 3 | . . . . . . . . . . . . . . . . . . . . . . . . . 3 . Watcher 16 | . 3 . . . . . . . . . . 2 . . . . . . . 1 2 1 3 3 . 1 Swarmer 36 | . 9 4 . . 2 . 6 . 4 4 . . . 1 . . . . . . . . . 3 3 . Saboteur 2 | . . . . . . . . . . . . . . . . . . . . . . . . . . 2 Grunt 61 | . 9 5 . . 11 5 . . 1 7 3 . . 2 . . . . . . . . . 5 9 4 Brawler 9 | . . . . . 2 1 . . . 1 . . . 1 . . . . . . . . . . 2 2 Duelist 8 | . . . . . 1 1 . . . 2 . . . 1 . . . . . . . . . . . 3 Researcher 2 | . . . . . . . . . . . . . . . . . . . . . . . . 2 . . Sentry 21 | . . 1 . . 4 . . . 1 . 2 . 1 1 . . . . . . . 2 . 5 4 . Demolisher 3 | . . . . . . . . . . 1 1 . . 1 . . . . . . . . . . . . Specialist 5 | . . . . . . . . . . 2 . . . 1 . . . . . . . . . . 2 . Hunter 23 | . . . . . . . . . 1 . . . . 2 . . . . . . . 2 . . 12 6 Programmer 29 | . . . . . 2 . . . . 3 . . . 4 . . . . . . 1 4 . 12 . 3 Behemoth 1 | . . . . . . . . . . . . . . . . . . . . . . . . . 1 . Cetus Guard 6 | . . . . . . . . . . . . 6 . . . . . . . . . . . . . . Enhanced Q-Series 21 | . . . . . . . . . . . . . . . . . . . . . . . . . . 21 Tracker 3 | . . . . . . . . . . . . . . . . . . . . . . . . 2 1 . Combat Programmer 2 | . . . . . . . . . . . . . . . . . . . . . . . . . 1 1 Striker 4 | . . . . . . . . . . . . . . . . . . . . . . . . 4 . . Executioner 2 | . . . . . . . . . . . . . . . . . . . . . . . . 2 . . Subdweller 13 | . . 13 . . . . . . . . . . . . . . . . . . . . . . . . Scrapoid 1 | . . . . . 1 . . . . . . . . . . . . . . . . . . . . . Mutant 1 | . . . . . . . 1 . . . . . . . . . . . . . . . . . . . Best Kill Streak 13 | 1 5 4 . . 12 3 3 . 4 6 3 5 2 6 . . . . . 1 2 2 1 6 11 13 Combat Bots Only 12 | . 3 4 . . 5 3 3 . 4 5 2 4 1 6 . . . . . . 1 2 . 5 8 12 Max Kills in Single Turn 4 | 1 4 4 . . 4 1 3 . 3 2 3 3 1 1 . . . . . 1 1 1 2 3 4 4 Gunslinging . | . . . . . . . . . . . . . . . . . . . . . . . . . . . Exploded 4 | . 3 4 . . 3 . 3 . 3 2 . 2 . . . . . . . . . . . . 2 3 Melee 1 | . . . . . 1 . . . . . . . . . . . . . . . . . . . . . Uniques/NPCs Destroyed 1 | . . . . . . . . . . . . . . . . . . . . . . . . . . 1 MAIN.C Shell (-1/Command) Combat | -11 -10 -10 -9 -9 -6 -6 -6 -6 -5 -5 -5 -5 -5 -5 -4 -4 -4 -4 -3 -3 -3 -2 -2 -2 -1 -1 -------- Run | Yrd Mat Sub Rec Scr Fac Low Low Zio Pro Fac Ext Cet Arc Hub Fac Upp Upp War Pro Res Tes Res Qua Sec Acc Com Hostile Shots Fired 2136 | . 63 130 . . 134 32 23 . 31 144 23 12 6 143 243 . 1 . 11 . 20 79 5 334 352 350 Missed 706 | . 26 36 . . 53 10 7 . 9 40 5 6 2 22 143 . 1 . 6 . 12 27 2 96 101 102 Damage Taken 34042 | . 416 1719 . . 1194 419 222 . 379 2086 496 162 106 4085 2013 . . . 107 131 388 1030 304 5954 5611 7220 Core 4570 | . 49 171 . . 66 . 35 . 14 168 38 . . 407 174 . . . 21 78 47 25 . 1434 1134 709 Absorbed by Shields 3019 | . . . . . . . . . . 90 73 50 . 172 . . . . . . . 20 . 34 851 1729 Reduced by Siege Mode 540 | . . . . . . . . . . . . . . 50 . . . . . . . . . . 380 110 Redirected to Shielding 181 | . . . . . . . . . . . . . . 120 . . . . . . . . . . . 61 Ignored by Resistances 269 | . . 42 . . . . . . . . . . . . . . . . . . . . . . . 227 Regen/Repaired (Parts) 1857 | . . . . . 255 103 125 . 145 361 . . 2 56 116 . . . . . . . 138 546 10 . Core Remaining (%) 49 | 100 . . . 12 . . . . 78 . . . . 19 . . . . 83 . 90 . . 10 . 4 Volleys Fired 1239 | 4 54 153 . . 92 36 26 2 15 61 20 9 41 36 36 . 1 6 . 17 24 72 21 183 137 193 Largest 3 | 2 2 2 . . 3 3 3 1 3 3 3 1 3 3 2 . 1 1 . 1 2 3 2 3 2 2 Hottest 330 | 40 100 110 . . 218 220 210 80 210 210 95 46 99 102 130 . 100 45 . 113 210 224 174 330 200 250 Shots Fired 1859 | 8 102 226 . . 175 55 31 2 37 140 57 9 60 95 44 . 1 6 . 17 25 85 23 303 148 210 Gun 945 | 8 96 145 . . 94 17 13 1 23 86 36 . 28 89 43 . 1 6 . . 14 76 8 150 11 . Cannon 753 | . . 27 . . 68 38 3 . 12 48 21 . . . . . . . . 17 11 9 15 149 129 206 Launcher 51 | . 3 2 . . 6 . 6 . 2 5 . 9 . 6 . . . . . . . . . . 8 4 Special 110 | . 3 52 . . 7 . 9 1 . 1 . . 32 . 1 . . . . . . . . 4 . . Kinetic 606 | 8 82 135 . . 42 4 . . . 48 36 . 28 89 . . . . . . . 20 1 75 11 27 Thermal 1001 | . 17 89 . . 121 51 16 1 35 84 21 . 32 . 44 . 1 . . 17 22 56 16 203 61 114 Explosive 42 | . 3 2 . . 6 . 6 . 2 5 . . . 6 . . . . . . . . . . 8 4 Electromagnetic 114 | . . . . . . . . . . 3 . 9 . . . . . . . . 3 9 6 . 43 41 Slashing 74 | . . . . . . . . . . . . . . . . . . . . . . . . 25 25 24 Entropic 6 | . . . . . . . . . . . . . . . . . . 6 . . . . . . . . Robot Hit Streak 33 | 4 10 25 . . 10 14 11 2 6 15 11 . 8 16 2 . . . . . 4 9 3 33 27 27 Robot Miss Streak 7 | 3 5 6 . . 6 2 1 . 4 2 2 . 2 3 1 . . . . . 1 3 3 7 4 5 Penetration Max 3 | . . . . . 1 . . . . . 1 . . 2 . . . . . . . 1 . 3 1 1 Secondary Targets 6 | . 2 2 . . . . . . . . . . . . . . . . . . . . . 1 1 . Max Gunslinging Chain 1 | . 1 1 . . . . . . . . . . . . . . . . . . . . . 1 1 . Capacitor 208 | . . . . . . . . . . . . . . . . . . . . . . . . . 79 129 Shots Hit Robots 1071 | 4 59 106 . 1 82 23 14 1 19 90 37 . 45 63 6 . . 7 1 4 16 29 3 207 96 158 Core Hits 662 | 1 35 40 . . 53 12 12 . 8 48 17 13 27 54 1 . . . . 2 5 19 2 88 102 123 Critical Kills 47 | . . . . . 3 . . . . 2 . . 2 2 . . . . . . . 7 . 22 5 4 Critical Parts Destroyed 55 | . . 1 . . 2 . . . . 2 2 . 1 6 . . . . . . . 9 . 30 2 . Critical Strikes 135 | . 2 3 . . 8 1 2 . 3 6 2 . 3 8 . . . . . . . 16 . 61 9 11 Burn 14 | . 2 1 . . 3 1 2 . 3 2 . . . . . . . . . . . . . . . . Meltdown 8 | . . . . . 2 . . . . 1 . . . . . . . . . . . . . . 1 4 Destroy 100 | . . 2 . . 1 . . . . 3 2 . 3 8 . . . . . . . 16 . 59 6 . Blast 3 | . . . . . . . . . . . . . . . . . . . . . . . . 1 1 1 Corrupt 1 | . . . . . . . . . . . . . . . . . . . . . . . . . . 1 Smash 2 | . . . . . 2 . . . . . . . . . . . . . . . . . . . . . Sever 7 | . . . . . . . . . . . . . . . . . . . . . . . . 1 1 5 Melee Attacks 118 | . . . . 1 11 . . . . 4 2 . 3 8 2 2 4 8 9 28 36 . . . . . Impact 11 | . . . . . 11 . . . . . . . . . . . . . . . . . . . . . Slashing 95 | . . . . . . . . . . 4 2 . 3 6 . 2 4 1 9 28 36 . . . . . Piercing . | . . . . . . . . . . . . . . . . . . . . . . . . . . . Sneak Attacks 24 | . . . . 1 2 . . . . 1 . . 2 3 . . . 7 . 2 6 . . . . . Combat Hostiles . | . . . . . . . . . . . . . . . . . . . . . . . . . . . Follow-up Attacks . | . . . . . . . . . . . . . . . . . . . . . . . . . . . Damage Inflicted 61441 | 58 968 2152 . . 4148 668 598 . 885 4076 1114 1154 875 3420 117 . . . 76 352 1236 688 425 7570 8018 22843 Guns 13597 | 58 713 1594 . . 1366 361 125 . 340 1425 714 . 555 2027 117 . . . . . 52 484 . 3453 213 . Cannons 28083 | . . 332 . . 797 307 55 . 247 995 400 . . . . . . . . . 112 204 204 4101 5204 15125 Explosions 17399 | . 243 226 . . 1631 . 418 . 298 1582 . 1154 . 1307 . . . . . . . . 221 . 2601 7718 Melee 2194 | . . . . . 354 . . . . 74 . . 180 86 . . . . 76 352 1072 . . . . . Ramming 12 | . 12 . . . . . . . . . . . . . . . . . . . . . . . . . Kinetic 9339 | 58 545 1468 . . 530 76 . . . 900 714 . 555 2027 . . . . . . . 198 . 982 180 1106 Thermal 29986 | . 168 458 . . 1795 592 180 . 587 1469 400 458 140 . 117 . . . . . 52 286 . 5866 2221 15197 Explosive 9781 | . 243 226 . . 1469 . 418 . 298 1522 . . . 1307 . . . . . . . . 221 . 1993 2084 Electromagnetic 3613 | . . . . . . . . . . 111 . 696 . . . . . . . . 112 204 204 . 1167 1119 Impact 354 | . . . . . 354 . . . . . . . . . . . . . . . . . . . . . Slashing 8356 | . . . . . . . . . . 74 . . 180 86 . . . . 76 352 1072 . . 722 2457 3337 Piercing . | . . . . . . . . . . . . . . . . . . . . . . . . . . . Highest Corruption 49 | . . . . . . . . . . 2 2 2 12 49 5 5 . . . . . 6 6 18 5 17 Average Corruption 5 | . . . . . . . . . . 1 2 2 2 9 3 4 . . . . . 2 6 11 4 7 Corruption Purged 39 | . . . . . . . . . . . . . 17 . . 5 . . . . . . . . . 17 Corruption Blocked . | . . . . . . . . . . . . . . . . . . . . . . . . . . . Effects 238 | . . . . . . . . . . 10 22 4 7 12 14 11 . . . . . 14 17 71 17 39 Message Errors 48 | . . . . . . . . . . 2 4 2 1 2 4 2 . . . . . 2 5 16 2 6 Matter Fused 72 | . . . . . . . . . . 5 4 . 4 4 4 4 . . . . . 3 3 20 6 15 Heat Flow Errors 21 | . . . . . . . . . . 1 5 . 1 2 . . . . . . . 2 . 4 1 5 Energy Discharges 28 | . . . . . . . . . . . 3 1 . 1 . 3 . . . . . 3 2 8 2 5 Parts Rejected 5 | . . . . . . . . . . 1 . . . 1 . . . . . . . . . 1 1 1 Parts Fused 4 | . . . . . . . . . . . 1 . . . . . . . . . . . . 3 . . Data Loss (minor) 27 | . . . . . . . . . . 1 2 . . 1 3 1 . . . . . 3 4 9 . 3 Data Loss (major) 9 | . . . . . . . . . . . 2 . . . 1 . . . . . . 1 2 2 1 . Misfires 8 | . . . . . . . . . . . 1 . . . 2 . . . . . . . 1 1 2 1 Alerts 3 | . . . . . . . . . . . . 1 . . . 1 . . . . . . . 1 . . Misdirections 2 | . . . . . . . . . . . . . . 1 . . . . . . . . . 1 . . Weapon Failures 11 | . . . . . . . . . . . . . 1 . . . . . . . . . . 5 2 3 Overload Shots . | . . . . . . . . . . . . . . . . . . . . . . . . . . . Overflow Damage 2911 | . . 30 . . 354 . 27 . 80 181 . 12 82 . . . . . 46 108 227 4 166 32 186 1376 Projectiles 1152 | . . . . . 51 . . . 27 11 . . . . . . . . . . 42 4 13 32 88 884 Explosions 1066 | . . 30 . . 65 . 27 . 53 136 . 12 . . . . . . . . . . 153 . 98 492 Melee 693 | . . . . . 238 . . . . 34 . . 82 . . . . . 46 108 185 . . . . . Knockbacks 14 | . . . . . 2 . . . . . . . . . . . . . . . . . . 4 2 6 Impact 1 | . . . . . 1 . . . . . . . . . . . . . . . . . . . . . Kinetic 11 | . . . . . . . . . . . . . . . . . . . . . . . . 3 2 6 Secondary 2 | . . . . . 1 . . . . . . . . . . . . . . . . . . 1 . . Self-Inflicted Damage 781 | . 28 55 . . . . 17 . . 92 . . . . . . . . . . . . 262 . 130 197 Shots 14 | . 2 2 . . . . 1 . . 3 . . . . . . . . . . . . 2 . 2 2 Rammed 1 | . 1 . . . . . . . . . . . . . . . . . . . . . . . . . Targets Rammed 1 | . 1 . . . . . . . . . . . . . . . . . . . . . . . . . Kicked . | . . . . . . . . . . . . . . . . . . . . . . . . . . . Crushed . | . . . . . . . . . . . . . . . . . . . . . . . . . . . Highest Temperature 429 | . 48 4 . . 429 277 318 52 327 315 279 4 257 207 316 . 79 12 . 267 272 370 316 297 117 394 Average Temperature 103 | . 14 4 . . 116 114 138 38 138 106 98 2 74 46 118 . 44 6 . 90 85 113 84 80 41 107 Received Heat Transfer 3200 | . 150 429 . . 444 252 80 . 36 487 48 . 27 132 75 . . . . . 21 5 9 285 355 365 Effects 17 | . . . . . 2 . . . . . . . . . . . . . . 1 . 13 . . . 1 Shutdowns 2 | . . . . . 1 . . . . . . . . . . . . . . . . 1 . . . . Energy Bleed 4 | . . . . . . . . . . . . . . . . . . . . . . 3 . . . 1 Interference 11 | . . . . . 1 . . . . . . . . . . . . . . 1 . 9 . . . . Siege Activations 9 | . . . . . . . . . . . . . . 1 . . . . . . . . . . 4 4 Total Turns 90 | . . . . . . . . . . . . . . 11 . . . . . . . . . . 42 37 Longest Duration 20 | . . . . . . . . . . . . . . 11 . . . . . . . . . . 20 16 Robots Corrupted 16 | . . . . . 3 . . . . . . 4 . . . . . . . . . 1 . . 3 5 Combat Hostiles 13 | . . . . . . . . . . . . 4 . . . . . . . . . 1 . . 3 5 Parts Fried 34 | . . . . . 3 . . . 1 1 . 7 . . . . . . . . . 2 . 1 8 11 Impact Corruptions 9 | . . . . . 8 . . . . . . . . . . . . . . . . . . 1 . . Robots Melted 11 | . . . . . 2 1 . . 1 2 . . . . . . . . . . . . . . 1 4 Combat Hostiles 9 | . . . . . 1 1 . . 1 1 . . . . . . . . . . . . . . 1 4 Parts Melted 48 | . . . . . 14 8 3 . 7 8 1 . . . . . . . . . . . . . 2 5 Heat Transferred 23710 | . 629 888 . . 2840 1046 524 . 1333 2472 555 400 525 . 200 . . . . . 37 259 . 2335 1751 7916 Parts Sabotaged . | . . . . . . . . . . . . . . . . . . . . . . . . . . . Parts Stolen . | . . . . . . . . . . . . . . . . . . . . . . . . . . . Parts Stripped . | . . . . . . . . . . . . . . . . . . . . . . . . . . . Power Chain Reactions 2 | . . . . . . . . . . . . 2 . . . . . . . . . . . . . . Alert | -11 -10 -10 -9 -9 -6 -6 -6 -6 -5 -5 -5 -5 -5 -5 -4 -4 -4 -4 -3 -3 -3 -2 -2 -2 -1 -1 ------- Run | Yrd Mat Sub Rec Scr Fac Low Low Zio Pro Fac Ext Cet Arc Hub Fac Upp Upp War Pro Res Tes Res Qua Sec Acc Com Peak Influence 2855 | 5 237 . 98 . 1430 . . . . 2009 1544 1195 754 1363 2855 . . . . 360 412 512 401 1122 1820 1655 Initial 1164 | . 3 . 38 . . . . . . . 984 864 478 27 602 . . . . 200 114 225 210 135 643 1164 Average 592 | . 95 . 55 . 552 . . . . 883 897 1091 339 1018 1240 . . . . 197 275 218 296 504 1165 1111 Maximum Alert Level 5 | . 1 . . . 4 . . . . 5 4 4 3 4 5 . . . . 1 2 2 2 4 5 5 Low Security (%) 28 | 100 93 . 100 . 14 . . . . 15 . . 32 3 . . . . . 47 16 33 . 30 . 56 Level 1 20 | . 6 . . . 24 . . . . 11 . . 26 . . . . . . 52 77 61 95 6 . . Level 2 17 | . . . . . 31 . . . . 17 30 . 31 20 30 . . . . . 5 5 4 20 14 . Level 3 17 | . . . . . 24 . . . . 21 42 65 8 18 31 . . . . . . . . 40 34 . Level 4 13 | . . . . . 4 . . . . 23 26 34 . 57 12 . . . . . . . . 1 28 42 Level 5 3 | . . . . . . . . . . 10 . . . . 26 . . . . . . . . . 22 1 High Security . | . . . . . . . . . . . . . . . . . . . . . . . . . . . Max Security . | . . . . . . . . . . . . . . . . . . . . . . . . . . . Squads Dispatched 150 | . 5 . . . 16 . . . . 21 5 . . 12 24 . . . . 12 6 7 1 21 15 5 Investigation 47 | . 4 . . . 9 . . . . 6 2 . . 1 8 . . . . 10 2 2 . . 3 . Extermination 26 | . . . . . 3 . . . . 4 . . . 3 2 . . . . . 2 2 1 6 1 2 Reinforcement 44 | . 1 . . . 3 . . . . 5 2 . . 6 10 . . . . 2 2 2 . 8 3 . Assault 18 | . . . . . 1 . . . . 3 1 . . 2 4 . . . . . . 1 . 2 1 3 Garrison 9 | . . . . . . . . . . 3 . . . . . . . . . . . . . 2 4 . Intercept 6 | . . . . . . . . . . . . . . . . . . . . . . . . 3 3 . Searches Triggered . | . . . . . . . . . . . . . . . . . . . . . . . . . . . Construction Impeded 10 | . . . . . 2 . . . . 3 1 . . 1 2 . . . . . . . . . 1 . Haulers Reinforced 10 | . . . . . 1 . . . . 2 . . . 1 2 . . . . . 1 . . 2 1 . Active Scanning Responses . | . . . . . . . . . . . . . . . . . . . . . . . . . . . Cargo Convoy Interrupts 1 | . . . . . . . . . . . . . . . . . . . . . . 1 . . . . Stealth | -11 -10 -10 -9 -9 -6 -6 -6 -6 -5 -5 -5 -5 -5 -5 -4 -4 -4 -4 -3 -3 -3 -2 -2 -2 -1 -1 --------- Run | Yrd Mat Sub Rec Scr Fac Low Low Zio Pro Fac Ext Cet Arc Hub Fac Upp Upp War Pro Res Tes Res Qua Sec Acc Com Distress Signals 53 | . 2 . . . 2 . . . . 3 2 2 . 2 11 . . . . 4 2 7 . 3 2 11 Communications Jammed 139 | . . . . . . . . . . . . . 1 28 54 . . . . . . . . . 56 . Distress Signals 137 | . . . . . . . . . . . . . 1 28 54 . . . . . . . . . 54 . Times Spotted 721 | . 23 31 . . 72 9 5 . 9 59 32 8 28 56 110 . 3 . 6 2 19 29 6 80 68 66 Peak Tracking Total 14 | . 4 6 . . 6 3 3 . 4 7 5 5 2 12 14 . 3 . 5 1 5 5 1 10 9 11 Tactical Retreats 59 | . . 5 . . 3 . . . . 4 . . . 2 15 . . . 1 . 5 9 . 10 5 . Traps | -11 -10 -10 -9 -9 -6 -6 -6 -6 -5 -5 -5 -5 -5 -5 -4 -4 -4 -4 -3 -3 -3 -2 -2 -2 -1 -1 ------- Run | Yrd Mat Sub Rec Scr Fac Low Low Zio Pro Fac Ext Cet Arc Hub Fac Upp Upp War Pro Res Tes Res Qua Sec Acc Com Traps Triggered 12 | . 1 . . . . . . . . 1 . . . . 2 . . . . 1 2 1 . 3 . 1 Indirectly . | . . . . . . . . . . . . . . . . . . . . . . . . . . . Trap Hack Attempts . | . . . . . . . . . . . . . . . . . . . . . . . . . . . Triggered . | . . . . . . . . . . . . . . . . . . . . . . . . . . . Disarmed 12 | . 6 . . . . . . . . . . . . . 6 . . . . . . . . . . . Reprogrammed 30 | . . . . . . . . . . . . . . . . . . . . . 6 . 6 18 . . Reused 7 | . . . . . . . . . . 1 . . . . . . . . . . 2 . . 4 . . Traps Extracted . | . . . . . . . . . . . . . . . . . . . . . . . . . . . Installed 3 | . . 1 . . . . . . . 1 . . . . . . . . . . . . . . . 1 Triggered 23 | . . . . . . 1 . . . 1 . . . . . . . 12 . . 2 2 . 4 . 1 Most Traps Carried 3 | . . . . 3 3 3 3 3 3 3 2 2 2 2 . . . . . . . . . . 2 2 Machines | -11 -10 -10 -9 -9 -6 -6 -6 -6 -5 -5 -5 -5 -5 -5 -4 -4 -4 -4 -3 -3 -3 -2 -2 -2 -1 -1 ---------- Run | Yrd Mat Sub Rec Scr Fac Low Low Zio Pro Fac Ext Cet Arc Hub Fac Upp Upp War Pro Res Tes Res Qua Sec Acc Com Machines Disabled 107 | . . 1 . . 8 . 1 . . 11 7 1 2 17 18 . . 1 . 1 10 4 6 15 2 2 Max in Single Turn 3 | . . 1 . . 3 . 1 . . 2 1 1 1 3 . . . 1 . . 1 1 2 2 1 1 Garrison Access 12 | . . . . . 2 . . . . . . . . . 2 . . . . 1 1 3 1 . 2 . Network Hub 3 | . . . . . . . . . . . . . . 3 . . . . . . . . . . . . Machines Repaired . | . . . . . . . . . . . . . . . . . . . . . . . . . . . Machines Dismantled 3 | . . . . . . . . . . . 2 1 . . . . . . . . . . . . . . Machines Sabotaged . | . . . . . . . . . . . . . . . . . . . . . . . . . . . Overloaded Fab Kills 1 | . . . . . . . . . . . . . . . 1 . . . . . . . . . . . Hacking | -11 -10 -10 -9 -9 -6 -6 -6 -6 -5 -5 -5 -5 -5 -5 -4 -4 -4 -4 -3 -3 -3 -2 -2 -2 -1 -1 --------- Run | Yrd Mat Sub Rec Scr Fac Low Low Zio Pro Fac Ext Cet Arc Hub Fac Upp Upp War Pro Res Tes Res Qua Sec Acc Com Machines Accessed 189 | . 9 3 6 3 31 1 1 . . 20 9 1 . 5 23 1 . 3 . 14 13 11 12 12 10 1 Terminals 100 | . 7 . 1 . 15 . . . . 12 7 1 . 5 10 . . . . 4 8 7 8 9 5 1 Fabricators 12 | . . . . . 4 . . . . 1 . . . . 1 . . . . 2 2 1 . . 1 . Repair Stations 10 | . . . . . 3 . . . . 2 . . . . 2 . . . . 1 . . 1 1 . . Recycling Units 28 | . 2 . 3 . 5 . . . . 4 2 . . . 6 . . . . 3 . 1 . . 2 . Scanalyzers 14 | . . . . . 2 . . . . 1 . . . . 2 . . . . 3 2 . 2 2 . . Garrison Access 11 | . . . . . 2 . . . . . . . . . 2 . . . . 1 1 2 1 . 2 . Total Hacks 770 | . 33 4 8 8 98 1 1 . . 47 18 2 . 10 137 1 . 7 . 57 79 84 49 85 35 6 Successful 492 | . 19 4 6 8 57 1 1 . . 32 9 . . 4 73 1 . 7 . 42 56 56 38 60 16 2 Failed 278 | . 14 . 2 . 41 . . . . 15 9 2 . 6 64 . . . . 15 23 28 11 25 19 4 Catastrophic 45 | . 2 . . . 3 . . . . 1 . . . 2 17 . . . . 1 6 1 . 3 7 2 Database Lockouts . | . . . . . . . . . . . . . . . . . . . . . . . . . . . Manual 394 | . 27 . 3 . 62 . . . . 29 10 1 . 5 65 . . . . 26 46 51 18 31 14 6 Terminals 522 | . 31 . 3 . 50 . . . . 30 16 2 . 10 98 . . . . 23 59 68 36 69 21 6 Fabricators 70 | . . . . . 22 . . . . 6 . . . . 3 . . . . 12 13 9 . . 5 . Repair Stations 27 | . . . . . 3 . . . . 3 . . . . 10 . . . . 3 . . 5 3 . . Recycling Units 49 | . 2 . 3 . 12 . . . . 6 2 . . . 11 . . . . 8 . 2 . . 3 . Scanalyzers 58 | . . . . . 9 . . . . 2 . . . . 11 . . . . 10 6 . 7 13 . . Garrison Access 20 | . . . . . 2 . . . . . . . . . 4 . . . . 1 1 5 1 . 6 . Terminal Hacks 200 | . 8 4 3 8 9 1 1 . . 5 5 . . 1 33 1 . 7 . 8 28 26 15 33 4 . Record 12 | . . 1 2 3 . . 1 . . . . . . . . . . 5 . . . . . . . . Part Schematic 8 | . 1 . . . . . . . . . . . . . . . . . . 1 5 . . 1 . . Robot Analysis 7 | . 2 . . 4 . . . . . . . . . . . . . . . . . . 1 . . . Prototype ID Bank 4 | . . . . . 1 . . . . . . . . . 1 . . . . . . . 1 1 . . Open Door 10 | . . 1 . . . 1 . . . . 3 . . . . 1 . 2 . . . . . 1 1 . Level Access Points 3 | . . . . . . . . . . . . . . . . . . . . . 1 . 1 1 . . Branch Access Points 5 | . . . . . 1 . . . . 1 . . . . 1 . . . . . . 1 . . 1 . Machine Index 4 | . . . . . . . . . . . . . . . 1 . . . . 1 . . 1 1 . . Terminal Index 5 | . . . . . 1 . . . . . . . . . 1 . . . . 1 . 1 . 1 . . Fabricator Index 2 | . . . . . . . . . . . . . . . . . . . . . 1 1 . . . . Recycling Unit Index 1 | . . . . . . . . . . . . . . . . . . . . . 1 . . . . . Garrison Index 4 | . . . . . . . . . . . . . . . . . . . . 1 1 1 . 1 . . Alert Level 9 | . . . . . . . . . . . . . . . 3 . . . . 1 2 1 1 1 . . Unreport Threat 21 | . . . . . 2 . . . . 1 2 . . . 4 . . . . 1 1 6 1 2 1 . Locate Traps 22 | . 3 . . . 1 . . . . 1 . . . . 3 . . . . 2 3 3 1 4 1 . Disarm Traps 2 | . 1 . . . . . . . . . . . . . 1 . . . . . . . . . . . Reprogram Traps 5 | . . . . . . . . . . . . . . . . . . . . . 1 . 1 3 . . Investigation Status 2 | . . . . . . . . . . . . . . . 1 . . . . . . 1 . . . . Reinforcement Status 1 | . . . . . . . . . . . . . . . . . . . . . . . . 1 . . Assault Status 1 | . . . . . . . . . . . . . . . 1 . . . . . . . . . . . Recall Investigation 7 | . . . . . 1 . . . . . . . . . 2 . . . . . 2 2 . . . . Recall Extermination 8 | . . . . . . . . . . 1 . . . . 1 . . . . . 2 1 1 2 . . Recall Reinforcements 9 | . . . . . . . . . . . . . . . 2 . . . . . 1 1 . 5 . . Recall Assault 3 | . . . . . . . . . . . . . . . 2 . . . . . . . . 1 . . Hauler Manifests 3 | . . . . . . . . . . . . . . . 1 . . . . . 1 1 . . . . Zone Layout 39 | . 1 . 1 . 2 . . . . 1 . . . 1 8 . . . . . 6 6 6 7 . . Derelict Proto ID Bank 2 | . . 1 . 1 . . . . . . . . . . . . . . . . . . . . . . Release Object 1 | . . 1 . . . . . . . . . . . . . . . . . . . . . . . . Fabricator Hacks 25 | . . . . . 8 . . . . 3 . . . . 1 . . . . 4 4 3 . . 2 . Network Status 5 | . . . . . 1 . . . . 1 . . . . 1 . . . . 1 . 1 . . . . Load Schematic 10 | . . . . . 3 . . . . 1 . . . . . . . . . 2 2 1 . . 1 . Build 10 | . . . . . 4 . . . . 1 . . . . . . . . . 1 2 1 . . 1 . Repair Station Hacks 14 | . . . . . . . . . . 2 . . . . 5 . . . . 1 . . 4 2 . . Scan Component 6 | . . . . . . . . . . 1 . . . . 2 . . . . . . . 2 1 . . Repair 6 | . . . . . . . . . . 1 . . . . 2 . . . . . . . 2 1 . . Refit 2 | . . . . . . . . . . . . . . . 1 . . . . 1 . . . . . . Recycling Unit Hacks 9 | . . . . . 2 . . . . 1 . . . . 2 . . . . 3 . 1 . . . . Report Inventory 1 | . . . . . . . . . . 1 . . . . . . . . . . . . . . . . Retrieve Components 8 | . . . . . 2 . . . . . . . . . 2 . . . . 3 . 1 . . . . Scanalyzer 39 | . . . . . 7 . . . . 2 . . . . 6 . . . . 8 4 . 5 7 . . Insert Component 25 | . . . . . 4 . . . . 1 . . . . 2 . . . . 5 2 . 5 6 . . Analyze 14 | . . . . . 3 . . . . 1 . . . . 4 . . . . 3 2 . . 1 . . Garrison Access Hacks 11 | . . . . . 2 . . . . . . . . . 2 . . . . 1 1 2 1 . 2 . Seal Access 11 | . . . . . 2 . . . . . . . . . 2 . . . . 1 1 2 1 . 2 . Unauthorized Hacks 194 | . 11 . 3 . 29 . . . . 19 4 . . 3 24 . . . . 17 19 24 13 18 8 2 Terminals 136 | . 9 . . . 17 . . . . 11 2 . . 3 15 . . . . 8 15 20 12 16 6 2 Track 36 | . . . . . 2 . . . . 1 . . . 3 4 . . . . 2 6 6 4 6 1 1 Assimilate 15 | . . . . . 5 . . . . 1 . . . . 1 . . . . . 1 3 1 2 1 . Botnet 20 | . 2 . . . 2 . . . . 2 1 . . . 3 . . . . 2 2 2 1 2 1 . Disrupt 3 | . . . . . 1 . . . . . . . . . 1 . . . . . . 1 . . . . Operators 12 | . 1 . . . 1 . . . . 1 1 . . . 1 . . . . 1 1 1 1 1 1 1 Skim 50 | . 6 . . . 6 . . . . 6 . . . . 5 . . . . 3 5 7 5 5 2 . Fabricators 21 | . . . . . 6 . . . . 3 . . . . 2 . . . . 4 3 3 . . . . Report 1 | . . . . . 1 . . . . . . . . . . . . . . . . . . . . . Prioritize 7 | . . . . . 2 . . . . 1 . . . . . . . . . 2 1 1 . . . . Liberate 6 | . . . . . 2 . . . . 1 . . . . . . . . . 1 1 1 . . . . Haulers 6 | . . . . . 1 . . . . 1 . . . . 1 . . . . 1 1 1 . . . . Overload 1 | . . . . . . . . . . . . . . . 1 . . . . . . . . . . . Repair Stations 28 | . . . . . 6 . . . . 5 2 . . . 7 . . . . 4 . 1 . 1 2 . Mechanics 5 | . . . . . 1 . . . . 1 . . . . 1 . . . . 1 . . . 1 . . Recycling Units 5 | . 2 . 3 . . . . . . . . . . . . . . . . . . . . . . . Tunnel 5 | . 2 . 3 . . . . . . . . . . . . . . . . . . . . . . . Scrapoids 23 | . . . . . 5 . . . . 4 2 . . . 6 . . . . 3 . 1 . . 2 . Scanalyzers 4 | . . . . . . . . . . . . . . . . . . . . 1 1 . 1 1 . . Researchers 3 | . . . . . . . . . . . . . . . . . . . . . 1 . 1 1 . . Extract 1 | . . . . . . . . . . . . . . . . . . . . 1 . . . . . . Garrison Access . | . . . . . . . . . . . . . . . . . . . . . . . . . . . Data Cores Recovered 3 | . . . . . 1 . . . . . . . . 1 . . . . . . 1 . . . . . Used 1 | . . . . . . . . . . . . . . 1 . . . . . . . . . . . . Hacking Detections 122 | . 7 . 1 . 26 . . . . 17 5 1 . 4 12 . . . . 7 11 9 8 8 6 . Full Trace Events 12 | . 1 . . . 3 . . . . 1 . . . . 1 . . . . 2 2 1 . . 1 . Feedback Events . | . . . . . . . . . . . . . . . . . . . . . . . . . . . Feedback Blocked . | . . . . . . . . . . . . . . . . . . . . . . . . . . . Robot Schematics Acquired 5 | . . . . . . . . 4 . . . . . . . . . . . . 1 . . . . . Robots Built . | . . . . . . . . . . . . . . . . . . . . . . . . . . . Authchips . | . . . . . . . . . . . . . . . . . . . . . . . . . . . Time . | . . . . . . . . . . . . . . . . . . . . . . . . . . . Total Robot Build Rating . | . . . . . . . . . . . . . . . . . . . . . . . . . . . Part Schematics Acquired 92 | . 1 . . 13 26 . 2 18 1 6 . 1 . . 2 . . . . 8 12 . . 2 . . Parts Built 13 | . . . . . 4 . . . . 1 . . . . . . . . . 1 4 1 . . 2 . Authchips . | . . . . . . . . . . . . . . . . . . . . . . . . . . . Time 436 | . . . . . 222 . . . . 47 . . . . . . . . . 15 63 31 . . 58 . Total Part Build Rating 77 | . . . . . 17 . . . . 5 . . . . . . . . . 2 32 7 . . 14 . Parts Repaired 6 | . . . . . . . . . . 1 . . . . 2 . . . . . . . 2 1 . . Time 296 | . . . . . . . . . . 13 . . . . 106 . . . . . . . 69 108 . . Parts Recycled . | . . . . . . . . . . . . . . . . . . . . . . . . . . . Recycled Matter . | . . . . . . . . . . . . . . . . . . . . . . . . . . . Retrieved Matter . | . . . . . . . . . . . . . . . . . . . . . . . . . . . Retrieved Components 35 | . . . . . 13 . . . . . . . . . 3 . . . . 16 . 3 . . . . Parts Scanalyzed 13 | . . . . . 4 . . . . 1 . . . . 2 . . . . 3 2 . . 1 . . Part Schematics Acquired 12 | . . . . . 3 . . . . 1 . . . . 2 . . . . 3 2 . . 1 . . Parts Damaged 1 | . . . . . 1 . . . . . . . . . . . . . . . . . . . . . Bothacking | -11 -10 -10 -9 -9 -6 -6 -6 -6 -5 -5 -5 -5 -5 -5 -4 -4 -4 -4 -3 -3 -3 -2 -2 -2 -1 -1 ------------ Run | Yrd Mat Sub Rec Scr Fac Low Low Zio Pro Fac Ext Cet Arc Hub Fac Upp Upp War Pro Res Tes Res Qua Sec Acc Com Used RIF Installer . | . . . . . . . . . . . . . . . . . . . . . . . . . . . Robots Hacked 9 | . . . . 1 3 . 1 1 . . . . . 1 2 . . . . . . . . . . . Non-combat . | . . . . . . . . . . . . . . . . . . . . . . . . . . . Combat 3 | . . . . 1 . . 1 1 . . . . . . . . . . . . . . . . . . Robot Hacks Applied 3 | . . . . 1 . . 1 1 . . . . . . . . . . . . . . . . . . parse_system 3 | . . . . 1 . . 1 1 . . . . . . . . . . . . . . . . . . Manual 6 | . . . . . 3 . . . . . . . . 1 2 . . . . . . . . . . . Relay Couplers Released 11 | . . . . . . . . . . . . . . . 4 . . . . . 3 4 . . . . Machine Destruction 4 | . . . . . . . . . . . . . . . . . . . . . . 4 . . . . Programmers 7 | . . . . . . . . . . . . . . . 4 . . . . . 3 . . . . . Fabnet Peak Effective % . | . . . . . . . . . . . . . . . . . . . . . . . . . . . Robots Rewired 19 | . . . . . . . 3 . . . 8 . 2 . . . . 5 . . 1 . . . . . Allies Hacked 6 | . . . . . . . . . . 2 . . . . 3 . . . . 1 . . . . . . Hacks Repelled . | . . . . . . . . . . . . . . . . . . . . . . . . . . . Allies | -11 -10 -10 -9 -9 -6 -6 -6 -6 -5 -5 -5 -5 -5 -5 -4 -4 -4 -4 -3 -3 -3 -2 -2 -2 -1 -1 -------- Run | Yrd Mat Sub Rec Scr Fac Low Low Zio Pro Fac Ext Cet Arc Hub Fac Upp Upp War Pro Res Tes Res Qua Sec Acc Com Total Allies 164 | . . . . 1 35 . 3 . . 21 24 5 2 1 32 . . 5 . 15 1 7 1 . 11 . Largest Group 18 | . . . . 1 14 5 5 5 5 16 18 18 17 17 10 . . 5 . 15 4 5 1 . 5 . Highest-Rated Group 1020 | . . . . 64 394 133 109 109 106 704 808 1020 1020 928 534 . . 255 . 960 256 320 26 . 329 . Highest-Rated Ally 159 | . . . . 64 64 28 26 26 26 50 159 152 152 96 116 . . 56 . 64 123 123 26 . 67 . Total Orders 119 | . . . . . 25 4 4 . 2 18 16 2 3 25 2 . . . . . 7 . . . 11 . STAY 47 | . . . . . 19 2 2 . 1 1 3 1 1 9 1 . . . . . 5 . . . 2 . ROAM 2 | . . . . . 1 . . . . . 1 . . . . . . . . . . . . . . . FOLLOW 26 | . . . . . 5 2 2 . 1 2 4 1 2 1 1 . . . . . 2 . . . 3 . EXPLORE 5 | . . . . . . . . . . . . . . . . . . . . . . . . . 5 . RETURN 39 | . . . . . . . . . . 15 8 . . 15 . . . . . . . . . . 1 . Ally Attacks 1795 | . . . . . 414 31 . . 15 284 219 24 21 152 339 . . 10 . 104 40 49 . . 93 . Total Damage 47570 | . . . . . 6284 578 . . 383 6619 6015 645 590 4440 11797 . . 473 . 3305 1615 2185 . . 2641 . Kills 300 | . . . . . 50 2 . . 2 53 35 2 3 33 80 . . 2 . 13 10 8 . . 7 . Allies Corrupted 10 | . . . . . 2 . . . . 1 . . . . 1 . . 1 . 3 2 . . . . . Allies Melted 5 | . . . . . . . . . . . . . . . . . . . . . . . . . . 5 Intel | -11 -10 -10 -9 -9 -6 -6 -6 -6 -5 -5 -5 -5 -5 -5 -4 -4 -4 -4 -3 -3 -3 -2 -2 -2 -1 -1 ------- Run | Yrd Mat Sub Rec Scr Fac Low Low Zio Pro Fac Ext Cet Arc Hub Fac Upp Upp War Pro Res Tes Res Qua Sec Acc Com Robot Analysis Total 7 | . 2 . . 4 . . . . . . . . . . . . . . . . . . 1 . . . Derelict Logs Recovered 17 | . . 2 . 5 . 3 1 1 3 . . . . . . 1 1 . . . . . . . . . Drone Launches 87 | . . . . . . . . . . 42 13 . . 28 . . . . . . . . . . 4 . Drone Recoveries 81 | . . . . . . . . . . 42 13 . . 24 . . . . . . . . . . 2 . Exploration | -11 -10 -10 -9 -9 -6 -6 -6 -6 -5 -5 -5 -5 -5 -5 -4 -4 -4 -4 -3 -3 -3 -2 -2 -2 -1 -1 ------------- Run | Yrd Mat Sub Rec Scr Fac Low Low Zio Pro Fac Ext Cet Arc Hub Fac Upp Upp War Pro Res Tes Res Qua Sec Acc Com Turns Passed 41765 | 90 1665 4662 829 4345 3281 1719 1849 1624 1970 2363 1409 292 2980 1480 1227 496 297 474 285 942 1300 1089 579 1974 1184 1360 Spaces Moved 31788 | 44 825 2785 383 2437 2206 883 989 894 1059 1097 856 164 634 672 2587 932 689 953 751 2112 2039 1260 1137 2025 782 593 Core 51 | 6 . . . . . . . . . . . . 45 . . . . . . . . . . . . . Treads 1705 | 38 825 801 . . . . . . . . . . . . . . . . . . . . . . 3 38 Legs 11 | . . . . . . . . . . . . . . . . . . . . . . . . . 11 . Wheels 15049 | . . 1984 383 2437 2206 883 989 894 1059 1097 856 164 589 612 . . . . . . . . . . 343 553 Hover 6245 | . . . . . . . . . . . . . . . . . . . . . 1458 1260 1137 1988 402 . Flight 8665 | . . . . . . . . . . . . . . 60 2587 932 689 953 751 2112 581 . . . . . Fastest Speed 31 | 50 160 95 215 105 110 180 180 180 180 130 130 130 130 80 32 34 34 34 34 31 31 42 42 42 54 110 Average Speed 109 | 145 160 137 215 174 123 182 180 180 180 187 132 130 440 183 35 34 34 34 34 31 44 50 42 48 91 149 Slowest Speed 4250 | 160 160 260 215 215 130 190 190 180 180 200 200 130 4250 200 97 114 34 34 34 111 114 118 118 135 290 250 Overloaded Moves . | . . . . . . . . . . . . . . . . . . . . . . . . . . . Propulsion Burnouts . | . . . . . . . . . . . . . . . . . . . . . . . . . . . Robots Hopped 34 | . . . . . . . . . . 1 . . . . 22 . . . 1 10 . . . . . . Cave-ins Triggered . | . . . . . . . . . . . . . . . . . . . . . . . . . . . Teleports 5 | . . . . . . . . . . . . . . . . . . . . . . . . 3 2 . Spacefolds 23 | . . . . . . . . . . . . . . . . . . . . . . . . 13 9 1 Exploration Rate (%) 71 | 4 98 90 33 95 50 96 98 84 96 34 84 73 98 74 70 89 72 95 78 61 91 29 93 89 25 23 Regions Visited 26 Branch Regions 19 Pre-discovered Areas 14 | . 3 1 3 1 1 . 1 1 1 . . . . . . . . . . . 1 . . 1 . . Known Exits Taken 17 | . 1 . . . 1 1 . . 1 1 . . . 1 1 1 1 1 1 1 1 1 1 1 1 . Unknown Exits Taken 9 | 1 . 1 1 1 . . 1 1 . . 1 1 1 . . . . . . . . . . . . . Scrap Searched 31 | . . 5 . 10 . 2 2 1 4 . . . . . . 5 1 . 1 . . . . . . . Spaces Dug 355 | . 25 8 . . 24 16 3 . 17 6 1 . . 5 20 2 2 . 6 40 32 44 12 29 52 11 Terrain Destroyed 1009 | . 36 20 . . 62 19 33 . 31 99 13 23 9 83 22 2 2 9 6 40 34 50 40 59 173 144 Melee 60 | . . . . . 1 . . . . 3 1 . . 5 . 2 2 . 6 23 17 . . . . . Projectile 439 | . 3 9 . . 37 19 4 . 1 29 12 . 9 74 22 . . 9 . 17 17 47 12 46 48 24 AOE 491 | . 33 11 . . 24 . 29 . 30 67 . 23 . 4 . . . . . . . . 28 . 123 119 Terrain Rammed . | . . . . . . . . . . . . . . . . . . . . . . . . . . . Walls Destroyed . | . . . . . . . . . . . . . . . . . . . . . . . . . . . Machines Disabled . | . . . . . . . . . . . . . . . . . . . . . . . . . . . Actions | -11 -10 -10 -9 -9 -6 -6 -6 -6 -5 -5 -5 -5 -5 -5 -4 -4 -4 -4 -3 -3 -3 -2 -2 -2 -1 -1 --------- Run | Yrd Mat Sub Rec Scr Fac Low Low Zio Pro Fac Ext Cet Arc Hub Fac Upp Upp War Pro Res Tes Res Qua Sec Acc Com Total 37078 | 61 1065 3286 389 2548 2621 945 1033 907 1107 1301 1072 227 762 834 2854 1101 745 1097 764 2319 2319 1624 1212 2693 1174 1018 Wait 2121 | 1 148 195 . . 183 1 5 3 11 47 90 15 30 34 180 156 48 95 7 109 69 205 18 289 105 77 Move 31661 | 43 824 2784 382 2436 2205 882 988 893 1058 1094 855 163 633 671 2542 931 688 952 748 2097 2038 1259 1136 2000 767 592 Hop 28 | . . . . . . . . . . 1 . . . . 22 . . . 1 4 . . . . . . Pick Up 415 | 6 12 40 5 54 33 9 3 2 5 17 7 8 10 10 8 6 . 7 . 17 31 19 13 30 31 32 Fast Attach 200 | 5 2 17 . 2 6 . . . 1 2 2 2 6 8 27 2 1 6 . 5 21 2 2 29 29 23 Attach 173 | 2 2 6 . 1 7 3 . . 2 8 5 1 4 8 4 . . 2 . 1 7 10 3 38 25 34 Detach 94 | . 3 1 . 2 4 1 . . 2 3 5 1 1 2 3 1 1 . . . 5 2 . 21 13 23 Swap 461 | . 14 29 1 16 42 12 10 5 7 41 29 9 10 42 8 . . 8 1 15 40 33 7 44 25 13 Drop 432 | . 5 55 1 36 36 1 1 2 6 13 8 11 9 13 22 3 2 13 . 25 41 20 11 30 39 29 Fire 1239 | 4 54 153 . . 92 36 26 2 15 61 20 9 41 36 36 . 1 6 . 17 24 72 21 183 137 193 Melee 116 | . . . . 1 11 . . . . 4 2 . 3 8 2 2 4 8 7 28 36 . . . . . Ram . | . . . . . . . . . . . . . . . . . . . . . . . . . . . Kick . | . . . . . . . . . . . . . . . . . . . . . . . . . . . Crush 1 | . 1 . . . . . . . . . . . . . . . . . . . . . . . . . Escape Stasis 33 | . . . . . . . . . . 8 . . . . . . . . . . . . . 25 . . Rewire 48 | . . . . . . . . . . . 31 . 15 . . . . . . . 2 . . . . . Trap 3 | . . 1 . . . . . . . 1 . . . . . . . . . . . . . . . 1 Miscellaneous 53 | . . 5 . . 2 . . . . 1 18 8 . 2 . . . . . 1 5 2 1 4 3 1 Route ------- -11/Scrapyard -10/Materials (discovered 6 exits: *Mat x3 / *Min x2 / *Sub) -10/Subcaves (discovered 3 exits: *Mat x2 / *Rec) -9/Recycling -9/Scraptown (discovered 2 exits: *Fac x2) -6/Factory (discovered 4 exits: *Fac x2 / *Low x2) -6/Lower Caves -6/Lower Caves (discovered 2 exits: *Fac / [*Zio]) -6/Zion (discovered 2 exits: Dee / [*Pro]) -5/Proximity Caves -5/Factory (discovered 8 exits: Fac x4 / *Upp x2 / *Ext x2) -5/Extension (discovered 2 exits: *Fac / *Cet) -5/Cetus (discovered 2 exits: *Fac / [*Arc]) -5/Archives (discovered 3 exits: *Fac / *Hub x2) -5/Hub_04(d) (discovered 4 exits: *Fac x4) -4/Factory (discovered 7 exits: *Res x4 / *Upp x2 / Arm) -4/Upper Caves -4/Upper Caves (discovered 2 exits: *Res / *War) -4/Warlord -3/Proximity Caves -3/Research (discovered 5 exits: *Res x3 / *Tes x2) -3/Testing -2/Research (discovered 5 exits: *Acc x3 / *Qua x2) -2/Quarantine (discovered 2 exits: *Acc / *Sec) -2/Section 7 -1/Access -1/Command (discovered 2 exits: Sur x2) By MAIN.C's Side History --------- Turn | Location | Event 39 | -11/Scrapyard | Discovered new exit (range 15) 91 | -11/Scrapyard | Entered Materials 312 | -10/Materials | Build established: Mutant 547 | -10/Materials | Discovered new exit (range 6) 619 | -10/Materials | Discovered new exit (range 15) 1010 | -10/Materials | Discovered new exit (range 9) 1094 | -10/Materials | Discovered new exit (range 13) 1248 | -10/Materials | Identified exit to Mines 1258 | -10/Materials | Identified exit to Materials 1384 | -10/Materials | Identified exit to Subcaves 1424 | -10/Materials | Learned location of 2 exits from Mines 1450 | -10/Materials | Learned location of Subcaves (-10) 1486 | -10/Materials | Learned Storage trap positions 1533 | -10/Materials | Learned location of 2 exits from Materials 1756 | -10/Materials | Entered Subcaves 1757 | -10/Subcaves | Identified exit to Materials 1815 | -10/Subcaves | Learned Materials emergency access door positions 2110 | -10/Subcaves | Learned location of Zion (-6) 2110 | -10/Subcaves | Met a Zionite searching for "candidates" 2292 | -10/Subcaves | Shifting Twisted Machinery released Flamer 2307 | -10/Subcaves | Shifting Twisted Machinery released Shrapnel Trap 3403 | -10/Subcaves | Curiously followed by a Cobbler waking with a query about "LVR3C" 3611 | -10/Subcaves | Shifting Twisted Machinery released Mak. Kinetic Plating 3615 | -10/Subcaves | Shifting Twisted Machinery released Sub. Machine Gun 3827 | -10/Subcaves | Shifting Twisted Machinery released Flamer 3849 | -10/Subcaves | A swath of the cavern ceiling suddenly collapsed 3966 | -10/Subcaves | Shifting Twisted Machinery released Riot Gun 4088 | -10/Subcaves | Core integrity fell below 50% 4565 | -10/Subcaves | Ambushed by Subdwellers from Twisted Machinery 4710 | -10/Subcaves | Discovered new exit (range 15) 5069 | -10/Subcaves | Ambushed by Subdwellers from Twisted Machinery 5083 | -10/Subcaves | Core integrity fell below 20% 5160 | -10/Subcaves | Build established: Subdweller-Mutant 5424 | -10/Subcaves | Visited 4L-MR0's lab 5438 | -10/Subcaves | Found Flightbrick 5743 | -10/Subcaves | Build established: Scavenger-Mutant 5781 | -10/Subcaves | Found SUBCON Basin 6379 | -10/Subcaves | Ambushed by Subdweller buried in earth 6418 | -10/Subcaves | Entered Recycling 6436 | -9/Recycling | Scanned before Scraplab entrance 6584 | -9/Recycling | Entered Scraplab 6679 | -9/Recycling | Discovered new exit (range 3) 7247 | -9/Recycling | Entered Scraptown 7776 | -9/Scraptown | Visited Spacefarers 7809 | -9/Scraptown | Build established: Mutant 7836 | -9/Scraptown | Tech Extrapolator generated special schematic: Machine Rigger 7875 | -9/Scraptown | Heard Great Nut preacher, LISTEN AND RECITE! 7915 | -9/Scraptown | Visited Bundlers 8028 | -9/Scraptown | Visited Comm Corps 8120 | -9/Scraptown | Visited Assassins FH 8155 | -9/Scraptown | Visited Junk Repository 8191 | -9/Scraptown | Visited The Evicted 8258 | -9/Scraptown | Scanned Subdweller tech in exchange for log data 8261 | -9/Scraptown | Learned 8 Research zone layouts 8262 | -9/Scraptown | Learned location of Testing (-3) 8264 | -9/Scraptown | Learned location of 1 exit from Research 8265 | -9/Scraptown | Learned Research stockpile data 8267 | -9/Scraptown | Learned Factory emergency access door positions 8281 | -9/Scraptown | Discovered new exit (range 11) 8844 | -9/Scraptown | Visited Shadow of the Wyrm 8856 | -9/Scraptown | Visited UFD Registry 8856 | -9/Scraptown | Registered with UFD as "Smoothslasher" 8886 | -9/Scraptown | Visited Botcube Research 8896 | -9/Scraptown | Found Botcube 8942 | -9/Scraptown | Visited Science Guys 8991 | -9/Scraptown | Visited Scrapoid Research Area 9049 | -9/Scraptown | Visited Modified Component R&D 9077 | -9/Scraptown | Visited Abandonware Association 9099 | -9/Scraptown | Learned abandonware demo "REPAIR.EXE" 9175 | -9/Scraptown | Visited Analyses Database 9204 | -9/Scraptown | Visited LU-1G1's Boring Crew 9253 | -9/Scraptown | Visited Curators Association 9282 | -9/Scraptown | Tech Extrapolator generated special schematic: Vmp. Humpback 9327 | -9/Scraptown | Delivered Scrap Shield to a Scientist 9338 | -9/Scraptown | Tech Extrapolator generated special schematic: Vmp. Brace Plating 9557 | -9/Scraptown | Visited Scrap Suit Storage 9571 | -9/Scraptown | Found Scrap Suit 10061 | -9/Scraptown | Visited DA-N13 Charitable Foundation 10087 | -9/Scraptown | Found DCF Scrap (28 items) 11123 | -9/Scraptown | Botcube activated 11145 | -9/Scraptown | Botcube completed mutation into legged form, armed with 2 guns. 11274 | -9/Scraptown | Found Scrap Suit 11579 | -9/Scraptown | Discovered new exit (range 5) 11592 | -9/Scraptown | Entered Factory 11592 | -6/Factory | Accompanied by 1 ally 11592 | -6/Factory | Evolved 8 slots: Propulsion x2, Utility x5, Weapon x1 11781 | -6/Factory | Discovered new exit (range 16) 11852 | -6/Factory | Tech Extrapolator generated special schematic: Energy Deflector 11908 | -6/Factory | Build established: Scrapper 12000 | -6/Factory | Fabricated Imp. Heavy Treads (x1) 12001 | -6/Factory | Scrapoids reinforcements arrived? 12051 | -6/Factory | Discovered new exit (range 7) 12070 | -6/Factory | Identified exit to Lower Caves 12286 | -6/Factory | Build established: Commander-Scrapper 12507 | -6/Factory | Scrapoids reinforcements arrived? 12606 | -6/Factory | Fabricated Vmp. Brace Plating (x1) 13490 | -6/Factory | Lost 5 allies 13639 | -6/Factory | Scrapoid reinforcements arrived 13852 | -6/Factory | Lost 3 allies 13868 | -6/Factory | Fabricated Multitool (x1) 13929 | -6/Factory | Lost 3 allies 14170 | -6/Factory | Build established: Scrapper 14266 | -6/Factory | Scrapoids reinforcements arrived? 14347 | -6/Factory | Fabricated Vmp. Humpback (x1) 14387 | -6/Factory | Learned location of 2 exits from Proximity Caves 14488 | -6/Factory | Found Scrap Suit 14514 | -6/Factory | Loaded intel: 82 trap records 14558 | -6/Factory | Build established: Commander-Scrapper 14604 | -6/Factory | Learned 4 Upper Caves zone layouts 14676 | -6/Factory | Learned Hub_04(d) emergency access door positions 14707 | -6/Factory | Scrapoids reinforcements arrived? 14728 | -6/Factory | Learned Hub_04(d) garrison access intel 14742 | -6/Factory | First assault squad dispatched 14772 | -6/Factory | Found Scrap Suit 14779 | -6/Factory | Found Scrap Suit 14791 | -6/Factory | Learned location of 1 exit from Lower Caves 14801 | -6/Factory | Discovered new exit (range 7) 14803 | -6/Factory | Lost 7 allies 14873 | -6/Factory | Entered Lower Caves 14873 | -6/Lower Caves | Accompanied by 5 allies 14874 | -6/Lower Caves | Identified exit to Lower Caves 14875 | -6/Lower Caves | UFD Scientist delivered a prototype 14881 | -6/Lower Caves | Found Prototype Protection 15190 | -6/Lower Caves | Build established: Hauler-Scrapper 15583 | -6/Lower Caves | Learned Factory emergency access door positions 15632 | -6/Lower Caves | Learned Factory terminal intel 15750 | -6/Lower Caves | Encountered a Warlord checkpoint 16299 | -6/Lower Caves | Learned 4 Factory zone layouts 16592 | -6/Lower Caves | Entered another Lower Caves area 16592 | -6/Lower Caves | Accompanied by 2 allies 16599 | -6/Lower Caves | Discovered new exit (range 5) 17636 | -6/Lower Caves | Encountered a Warlord checkpoint 17690 | -6/Lower Caves | Attacked by a delusional Derelict stockpiling Unaware 18175 | -6/Lower Caves | Discovered new exit (range 5) 18441 | -6/Lower Caves | Entered Zion 18441 | -6/Zion | Accompanied by 5 allies 18582 | -6/Zion | Given the Hacking Drone Bay 18582 | -6/Zion | Found Prototype Device 18588 | -6/Zion | Discovered new exit (range 13) 18705 | -6/Zion | Acquired unknown access codes intercepted by a Zionite 18828 | -6/Zion | Given A8's code to call for help 18884 | -6/Zion | Learned Factory emergency access door positions 18968 | -6/Zion | Identified exit to Deep Caves 18970 | -6/Zion | Identified Hacking Drone Bay 19126 | -6/Zion | Turned away by Imprinter 20065 | -6/Zion | Entered Proximity Caves 20065 | -5/Proximity Caves | Accompanied by 5 allies 20066 | -5/Proximity Caves | Identified exit to Factory 20081 | -5/Proximity Caves | Tech Extrapolator generated special schematic: Heat Bomb Trap 20357 | -5/Proximity Caves | Attracted the attention of an 0b10 checkpoint 20376 | -5/Proximity Caves | Received a Behemoth hack from an annoying Tinkerer 20397 | -5/Proximity Caves | Learned location of Warlord (-4) 22035 | -5/Proximity Caves | Entered Factory 22035 | -5/Factory | Accompanied by 4 allies 22035 | -5/Factory | Evolved 2 slots: Utility x2 22036 | -5/Factory | Identified exit to Upper Caves 22037 | -5/Factory | Identified exit to Extension 22039 | -5/Factory | Loaded intel: 27 terminal locations 22066 | -5/Factory | Scrapoid reinforcements arrived 22200 | -5/Factory | Scrapoids reinforcements arrived? 22311 | -5/Factory | Garrison activated, responded to threat 22475 | -5/Factory | Discovered new exit (range 15) 22505 | -5/Factory | Build established: Commander-Scrapper 22692 | -5/Factory | Scrapoids reinforcements arrived? 23168 | -5/Factory | Found Prototype Launcher 23475 | -5/Factory | Fabricated Tactical Coordination Suite? 23505 | -5/Factory | Build established: Hauler-Scrapper 23525 | -5/Factory | Learned 2 Extension zone layouts 23573 | -5/Factory | Learned location of 1 exit from Armory 23580 | -5/Factory | First assault squad dispatched 23609 | -5/Factory | Learned Testing terminal intel 23636 | -5/Factory | Learned 2 Upper Caves zone layouts 23652 | -5/Factory | Learned Extension garrison access intel 23659 | -5/Factory | Learned location of 3 exits from Research 23674 | -5/Factory | Learned Extension security intel 23698 | -5/Factory | Learned Extension emergency access door positions 23707 | -5/Factory | Identified Mni. Smartbomb Launcher 23725 | -5/Factory | Lost 4 allies 23732 | -5/Factory | Learned Extension garrison access intel 24086 | -5/Factory | Scrapoids reinforcements arrived? 24092 | -5/Factory | Identified exit to Factory 24273 | -5/Factory | Found Scrap Suit 24276 | -5/Factory | Lost 3 allies 24373 | -5/Factory | Repaired Humpback 24398 | -5/Factory | Entered Extension 24398 | -5/Extension | Accompanied by 1 ally 24629 | -5/Extension | Rescued a captive Derelict 24672 | -5/Extension | Rescued A7 24709 | -5/Extension | Rescued a captive Derelict 24709 | -5/Extension | Rescued a captive Derelict 24852 | -5/Extension | Scrapoids reinforcements arrived? 25159 | -5/Extension | Spotted B-75 Beast 25164 | -5/Extension | Allies destroyed B-75 Beast 25197 | -5/Extension | Spotted B-75 Beast 25206 | -5/Extension | Allies destroyed B-75 Beast 25258 | -5/Extension | Rescued a captive Derelict 25506 | -5/Extension | Rescued a captive Derelict 25561 | -5/Extension | Lost 3 allies 25598 | -5/Extension | First assault squad dispatched 25607 | -5/Extension | Scrapoids reinforcements arrived? 25693 | -5/Extension | Lost 3 allies 25750 | -5/Extension | Discovered new exit (range 16) 25751 | -5/Extension | Discovered exit to Factory (range 15) 25756 | -5/Extension | Build established: Commander-Scrapper 25807 | -5/Extension | Entered Cetus 25807 | -5/Cetus | Accompanied by 15 allies (A7) 25812 | -5/Cetus | Acquired a Cetus Manufacturing Module code from A7 25829 | -5/Cetus | Spotted Cetus Guard 25829 | -5/Cetus | Spotted Cetus Guard 25833 | -5/Cetus | Spotted Cetus Guard 25834 | -5/Cetus | Allies destroyed Cetus Guard 25834 | -5/Cetus | Spotted Cetus Guard 25835 | -5/Cetus | Destroyed Cetus Guard 25835 | -5/Cetus | Destroyed Cetus Guard 25835 | -5/Cetus | Allies destroyed Cetus Guard 25908 | -5/Cetus | Started Cetus Manufacturing Module 25933 | -5/Cetus | Manufactured an Enhanced Grunt 25934 | -5/Cetus | Escorted A7 to Cetus Mainframe 25958 | -5/Cetus | Manufactured an Enhanced Grunt 25958 | -5/Cetus | Discovered new exit (range 15) 25983 | -5/Cetus | Manufactured an Enhanced Grunt 25987 | -5/Cetus | Spotted Cetus Guard 25987 | -5/Cetus | Spotted Cetus Guard 25991 | -5/Cetus | Spotted Cetus Guard 25995 | -5/Cetus | Destroyed Cetus Guard 25995 | -5/Cetus | Spotted Cetus Guard 25999 | -5/Cetus | Destroyed Cetus Guard 25999 | -5/Cetus | Destroyed Cetus Guard 26000 | -5/Cetus | Destroyed Cetus Guard 26008 | -5/Cetus | Manufactured an Enhanced Grunt 26008 | -5/Cetus | Discovered exit to Factory (range 15) 26017 | -5/Cetus | Met Revision 17 26029 | -5/Cetus | Lost 3 allies 26033 | -5/Cetus | Manufactured an Enhanced Grunt 26099 | -5/Cetus | Entered Archives 26099 | -5/Archives | Accompanied by 17 allies (A7) 26104 | -5/Archives | Received a hacking code to weaken MAIN.C 26231 | -5/Archives | Discovered exit to Factory (range 15) 26365 | -5/Archives | System corruption reached 10% 26407 | -5/Archives | Discovered new exit (range 15) 26435 | -5/Archives | Discovered new exit (range 14) 29079 | -5/Archives | Entered Hub_04(d) 29079 | -5/Hub_04(d) | Accompanied by 17 allies 29146 | -5/Hub_04(d) | Discovered exit to Factory (range 13) 29257 | -5/Hub_04(d) | Discovered exit to Factory (range 16) 29550 | -5/Hub_04(d) | Discovered exit to Factory (range 7) 29679 | -5/Hub_04(d) | First assault squad dispatched 29744 | -5/Hub_04(d) | Lost 3 parts (2u1w) 29747 | -5/Hub_04(d) | Lost 8 allies 29779 | -5/Hub_04(d) | Discovered exit to Factory (range 12) 30104 | -5/Hub_04(d) | Core integrity fell below 50% 30424 | -5/Hub_04(d) | Build established: Hauler-Scrapper 30443 | -5/Hub_04(d) | Network Hub disabled 30449 | -5/Hub_04(d) | Spotted Lightning 30449 | -5/Hub_04(d) | Spotted Lightning 30449 | -5/Hub_04(d) | Spotted Lightning 30449 | -5/Hub_04(d) | Spotted Lightning 30452 | -5/Hub_04(d) | Spotted Lightning 30453 | -5/Hub_04(d) | Spotted Lightning 30469 | -5/Hub_04(d) | Spotted Lightning 30475 | -5/Hub_04(d) | Network Hub disabled 30475 | -5/Hub_04(d) | Spotted Lightning 30475 | -5/Hub_04(d) | Spotted Lightning 30475 | -5/Hub_04(d) | Network Hub disabled 30489 | -5/Hub_04(d) | System corruption reached 30% 30492 | -5/Hub_04(d) | Identified Enh. Scrap Shield 30500 | -5/Hub_04(d) | Attached Flightbrick, gained temporary slots: Utility x3 30514 | -5/Hub_04(d) | Core integrity fell below 20% 30541 | -5/Hub_04(d) | Lost 8 parts (1p4u3w) 30559 | -5/Hub_04(d) | Entered Factory 30559 | -4/Factory | Evolved 2 slots: Propulsion x2 30560 | -4/Factory | Identified exit to Armory 30598 | -4/Factory | Found Prototype Processor 30598 | -4/Factory | Identified Exp. Melee Analysis Suite 30623 | -4/Factory | Found Prototype Hackware 30623 | -4/Factory | Identified Exp. System Shield 30662 | -4/Factory | Repaired Tactical Coordination Suite? 30670 | -4/Factory | Scrapoids reinforcements arrived? 30726 | -4/Factory | Repaired Adv. Cooling System 30801 | -4/Factory | Lost 5 allies 30825 | -4/Factory | Discovered new exit (range 5) 30827 | -4/Factory | Identified exit to Research 30842 | -4/Factory | Spotted B-86 Titan 30860 | -4/Factory | Identified exit to Upper Caves 30868 | -4/Factory | Spotted B-86 Titan 30912 | -4/Factory | Lost 3 parts (1n2u) 30913 | -4/Factory | Befriended a Behemoth using the annoying Tinkerer's hack 31054 | -4/Factory | Learned 4 Armory zone layouts 31059 | -4/Factory | First assault squad dispatched 31116 | -4/Factory | Learned Quarantine emergency access door positions 31126 | -4/Factory | Discovered exit to Research (range 8) 31129 | -4/Factory | Discovered exit to Research (range 15) 31261 | -4/Factory | Scrapoids reinforcements arrived? 31265 | -4/Factory | P-70 Sage assimilated allied 04F63-D 31273 | -4/Factory | P-70 Sage assimilated allied 04F66-D 31368 | -4/Factory | Scrapoids reinforcements arrived? 31405 | -4/Factory | Scrapoids reinforcements arrived? 31426 | -4/Factory | Scrapoids reinforcements arrived? 31451 | -4/Factory | Build established: Hacker-Ninja 31459 | -4/Factory | Lost 4 allies 31511 | -4/Factory | Befriended a Behemoth using the annoying Tinkerer's hack 31528 | -4/Factory | Lost 4 allies 31533 | -4/Factory | Scrapoids reinforcements arrived? 31786 | -4/Factory | Entered Upper Caves 31786 | -4/Upper Caves | Spotted B-86 Titan 31814 | -4/Upper Caves | Lost 5 allies 31911 | -4/Upper Caves | Build established: Hacker-Mutant 32128 | -4/Upper Caves | Learned location of 1 exit from Research 32174 | -4/Upper Caves | Encountered a Warlord checkpoint 32224 | -4/Upper Caves | Discovered new exit (range 15) 32230 | -4/Upper Caves | Identified exit to Upper Caves 32282 | -4/Upper Caves | Entered another Upper Caves area 32306 | -4/Upper Caves | Learned location of 2 exits from Research 32530 | -4/Upper Caves | Discovered new exit (range 8) 32573 | -4/Upper Caves | Identified exit to Warlord 32579 | -4/Upper Caves | Entered Warlord 32750 | -4/Warlord | Warlord's base attacked by MAIN.C 32770 | -4/Warlord | Found Prototype Energy Gun 32771 | -4/Warlord | Identified Vortex Rail 32816 | -4/Warlord | Rebuked by Warlord 32837 | -4/Warlord | Found Prototype Device 32837 | -4/Warlord | Identified Thermal Barrier 32842 | -4/Warlord | Found Prototype Processor 32843 | -4/Warlord | Identified Spectral Analyzer 32860 | -4/Warlord | Found Prototype Hackware 32860 | -4/Warlord | Identified System Mapper 32884 | -4/Warlord | Spotted B-86 Titan 32886 | -4/Warlord | Spotted B-90 Cyclops 32907 | -4/Warlord | Spotted B-90 Cyclops 32936 | -4/Warlord | Allies destroyed B-90 Cyclops 32945 | -4/Warlord | Lost 8 allies 32980 | -4/Warlord | Opened side exit 33044 | -4/Warlord | Discovered new exit (range 8) 33051 | -4/Warlord | Identified exit to Proximity Caves 33053 | -4/Warlord | Entered Proximity Caves 33248 | -3/Proximity Caves | Spotted B-86 Titan 33263 | -3/Proximity Caves | Spotter reported a threat 33338 | -3/Proximity Caves | Entered Research 33338 | -3/Research | Evolved 2 slots: Power x1, Propulsion x1 33339 | -3/Research | Identified exit to Research 33339 | -3/Research | Identified exit to Testing 33379 | -3/Research | Build established: Wizard-Scout 33397 | -3/Research | Fabricated Multitool (x1) 33538 | -3/Research | Revision forces began assault on 0b10 33668 | -3/Research | Scrapoids reinforcements arrived? 33696 | -3/Research | Scrapoids reinforcements arrived? 33895 | -3/Research | Lost 4 allies 33978 | -3/Research | Scrapoids reinforcements arrived? 34038 | -3/Research | Research terminal network offline 34115 | -3/Research | Spotted B-86 Titan 34140 | -3/Research | Found Prototype Device 34172 | -3/Research | Identified Exp. EM Disruption Field 34280 | -3/Research | Entered Testing 34280 | -3/Testing | Accompanied by 4 allies 34281 | -3/Testing | Loaded intel: 12 terminal locations 34321 | -3/Testing | Found Prototype Energy Cannon 34321 | -3/Testing | Identified Imp. Potential Cannon 34393 | -3/Testing | Found Prototype Energy Gun 34393 | -3/Testing | Identified Hyp. EM Gauss Rifle 34422 | -3/Testing | Found Prototype Device 34432 | -3/Testing | Identified Exp. Thermal Defense Suite 34473 | -3/Testing | Fabricated Cmb. Antigrav System? 34692 | -3/Testing | Found Imp. Potential Cannon 34787 | -3/Testing | Found Prototype Device 34788 | -3/Testing | Identified Exp. Hardlight Generator 34807 | -3/Testing | Found Prototype Energy Cannon 34807 | -3/Testing | Identified Null Cannon 34955 | -3/Testing | P-80 Master assimilated allied 03R93-D 34957 | -3/Testing | Unstable Terrabomb Derivative detonated 34991 | -3/Testing | Lost 3 allies 35161 | -3/Testing | Fabricated Cmb. Antigrav System? 35178 | -3/Testing | Spotted PD-3XQ2OC7G94 35224 | -3/Testing | Rewired PD-3XQ2OC7G94 35242 | -3/Testing | Found Prototype Device 35246 | -3/Testing | Identified Adv. Kinecellerator 35246 | -3/Testing | Found Prototype Launcher 35257 | -3/Testing | Identified Hellfire Missile Launcher 35346 | -3/Testing | Found Prototype Processor 35363 | -3/Testing | Identified Exp. Terrain Scan Processor 35386 | -3/Testing | Found Prototype Ballistic Gun 35398 | -3/Testing | Learned Quarantine trap positions 35399 | -3/Testing | Identified Hyp. Multirail 35455 | -3/Testing | Learned location of 1 exit from Testing 35475 | -3/Testing | Learned 8 Research zone layouts 35476 | -3/Testing | Learned Testing terminal intel 35492 | -3/Testing | Learned Access trap positions 35511 | -3/Testing | Found Prototype Energy Cannon 35511 | -3/Testing | Identified Hpw. Disruptor Cannon 35545 | -3/Testing | Found Prototype Protection 35547 | -3/Testing | Found Prototype Protection 35580 | -3/Testing | Entered Research 35580 | -2/Research | Accompanied by 1 ally 35580 | -2/Research | Evolved 2 slots: Propulsion x1, Utility x1 35581 | -2/Research | Identified exit to Access 35582 | -2/Research | Identified exit to Quarantine 35698 | -2/Research | Fabricated Exp. Signal Interpreter? 35929 | -2/Research | Scrapoids reinforcements arrived? 36472 | -2/Research | Cargo convoy interrupted 36669 | -2/Research | Entered Quarantine 36670 | -2/Quarantine | Loaded intel: 13 trap records 36677 | -2/Quarantine | Cryocooling Duct disabled 36692 | -2/Quarantine | Ambient heat levels rising (+20) 36692 | -2/Quarantine | Non-combat units ordered to evacuate 36785 | -2/Quarantine | Found Alien Artifact 36809 | -2/Quarantine | Identified Core Reset Matrix 36885 | -2/Quarantine | Learned Research recycling unit intel 36916 | -2/Quarantine | Learned 8 Access zone layouts 36930 | -2/Quarantine | Repaired Tactical Coordination Suite? 36936 | -2/Quarantine | Learned Access scanalyzer intel 36947 | -2/Quarantine | Learned Research trap positions 36949 | -2/Quarantine | Identified exit to Section 7 36961 | -2/Quarantine | Learned Research stockpile data 37033 | -2/Quarantine | Repaired Enh. Fission Core 37110 | -2/Quarantine | Found Alien Artifact 37137 | -2/Quarantine | Found Alien Artifact 37144 | -2/Quarantine | Found Alien Artifact 37148 | -2/Quarantine | Found Alien Artifact 37151 | -2/Quarantine | Found Alien Artifact 37165 | -2/Quarantine | Identified Dimensional Node Initializer 37165 | -2/Quarantine | Identified Hpw. Transdimensional Reconstructor 37165 | -2/Quarantine | Identified Subatomic Replicator 37165 | -2/Quarantine | Identified Transdimensional Reconstructor (x2) 37194 | -2/Quarantine | Identified Hvy. Regenerative Plating 37212 | -2/Quarantine | Spotted Fortress 37248 | -2/Quarantine | Entered Section 7 37263 | -2/Section 7 | Found Alien Artifact 37299 | -2/Section 7 | Identified Spacefold Activator 37384 | -2/Section 7 | Repaired Cld. Antigrav System 37646 | -2/Section 7 | Found Alien Artifact 37820 | -2/Section 7 | System corruption reached 10% 38051 | -2/Section 7 | Initialized slip node 38056 | -2/Section 7 | Found Prototype Device 38064 | -2/Section 7 | Identified Integrated Dissipator 38064 | -2/Section 7 | Identified Exp. Force Field 38066 | -2/Section 7 | Installed Integrated Dissipator, increased core heat dissipation (+20) 38287 | -2/Section 7 | Spotted S7 Guard 38289 | -2/Section 7 | Found Alien Artifact 38294 | -2/Section 7 | First assault squad dispatched 38337 | -2/Section 7 | Spotted Executioner 38337 | -2/Section 7 | Spotted Executioner 38359 | -2/Section 7 | Spotted B-99 Colossus 38390 | -2/Section 7 | Found Integrated Dissipator 38390 | -2/Section 7 | Installed Integrated Dissipator, increased core heat dissipation (+20) 38392 | -2/Section 7 | Found Integrated Dissipator 38392 | -2/Section 7 | Installed Integrated Dissipator, increased core heat dissipation (+20) 38394 | -2/Section 7 | Found Integrated Dissipator 38394 | -2/Section 7 | Installed Integrated Dissipator, increased core heat dissipation (+20) 38412 | -2/Section 7 | Found Alien Artifact 38412 | -2/Section 7 | Identified LRC Armor 38412 | -2/Section 7 | Installed LRC Armor, increased core integrity (+250) 38416 | -2/Section 7 | Found LRC Armor 38416 | -2/Section 7 | Installed LRC Armor, increased core integrity (+250) 38417 | -2/Section 7 | Found Alien Artifact 38417 | -2/Section 7 | Identified LRC Energy Well 38417 | -2/Section 7 | Installed LRC Energy Well, increased energy storage capacity (+250) 38440 | -2/Section 7 | Found Alien Artifact 38470 | -2/Section 7 | Spotted Executioner 38693 | -2/Section 7 | Spotted Executioner 38704 | -2/Section 7 | Spotted Striker 38705 | -2/Section 7 | Spotted Striker 38728 | -2/Section 7 | Destroyed Executioner 38737 | -2/Section 7 | Destroyed Executioner 38760 | -2/Section 7 | Found Exp. Core Analyzer 38763 | -2/Section 7 | Found Prototype Processor 38763 | -2/Section 7 | Identified Exp. Targeting Computer 38778 | -2/Section 7 | Destroyed Striker 38788 | -2/Section 7 | Destroyed Striker 38800 | -2/Section 7 | Spotted Striker 38800 | -2/Section 7 | Spotted Striker 38803 | -2/Section 7 | Destroyed Striker 38803 | -2/Section 7 | Destroyed Striker 38815 | -2/Section 7 | Found Alien Energy Cannon 38823 | -2/Section 7 | Found Alien Energy Gun 38823 | -2/Section 7 | Identified Sigix Sheargun 38909 | -2/Section 7 | Warped through subspace to slip node 38919 | -2/Section 7 | Identified Core Physics Calibrator 38919 | -2/Section 7 | Identified Core Expander 38919 | -2/Section 7 | Installed Core Expander, added new Utility slot 38988 | -2/Section 7 | Core integrity fell below 50% 38990 | -2/Section 7 | Scanned by Researcher 38991 | -2/Section 7 | Intercept squad dispatched 39006 | -2/Section 7 | Spotted Tracker 39006 | -2/Section 7 | Spotted Tracker 39008 | -2/Section 7 | Warped through subspace to slip node 39033 | -2/Section 7 | Learned Access recycling unit intel 39043 | -2/Section 7 | Garrison activated, responded to threat 39054 | -2/Section 7 | Identified Sigix Shearcannon 39058 | -2/Section 7 | Destroyed Tracker 39064 | -2/Section 7 | Destroyed Tracker 39094 | -2/Section 7 | Lost 6 parts (2p1n3u) 39094 | -2/Section 7 | Used Subatomic Replicator to replicate Sigix Shearcannon 39136 | -2/Section 7 | Learned location of 2 exits from Research 39158 | -2/Section 7 | Spotted Combat Programmer 39175 | -2/Section 7 | Core integrity fell below 20% 39178 | -2/Section 7 | Found Transdimensional Reconstructor 39183 | -2/Section 7 | Found Transdimensional Reconstructor 39186 | -2/Section 7 | Found Hpw. Transdimensional Reconstructor 39190 | -2/Section 7 | Warped through subspace to slip node 39204 | -2/Section 7 | Learned 8 Research zone layouts 39220 | -2/Section 7 | Lost 5 parts (3n2u) 39222 | -2/Section 7 | Entered Access 39222 | -1/Access | Evolved 2 slots (calibrated): Power x1, Propulsion x1, Utility x1, -Weapon x1 39224 | -1/Access | Loaded intel: 90 trap records 39225 | -1/Access | Loaded intel: 4 recycling unit locations 39226 | -1/Access | Loaded intel: 4 scanalyzer locations 39289 | -1/Access | Scrapoids reinforcements arrived? 39352 | -1/Access | Identified exit to Command 39454 | -1/Access | Build established: Scavenger-Mutant 39608 | -1/Access | Lost 8 parts (1p5n1u1w) 39628 | -1/Access | Scrapoids reinforcements arrived? 39630 | -1/Access | Garrison activated, responded to threat 39635 | -1/Access | Found Prototype Device 39635 | -1/Access | Identified Exp. Transmission Jammer 39675 | -1/Access | Lost 5 allies 39712 | -1/Access | Lost 3 parts (1p2n) 39724 | -1/Access | Destroyed 8 combat bots 39746 | -1/Access | Found Scrap Suit 39767 | -1/Access | Found Scrap Suit 39810 | -1/Access | Found Quantum Capacitor 40001 | -1/Access | Spotted B-99 Colossus 40008 | -1/Access | Destroyed B-99 Colossus 40033 | -1/Access | Intercept squad dispatched 40045 | -1/Access | Spotted Tracker 40045 | -1/Access | Spotted Tracker 40064 | -1/Access | Destroyed Tracker 40066 | -1/Access | Garrison activated, responded to threat 40067 | -1/Access | Warped through subspace 40068 | -1/Access | Core integrity fell below 50% 40082 | -1/Access | Fabricated Heat Bomb Trap? 40106 | -1/Access | Spotted Combat Programmer 40107 | -1/Access | Warped through subspace 40165 | -1/Access | Lost 5 parts (2p1n2u) 40170 | -1/Access | Destroyed Combat Programmer 40191 | -1/Access | Destroyed 7 combat bots 40222 | -1/Access | First assault squad dispatched 40406 | -1/Access | Entered Command 40534 | -1/Command | Found Gamma Bomb Array 40690 | -1/Command | System corruption reached 10% 40705 | -1/Command | First assault squad dispatched 40839 | -1/Command | Destroyed 12 combat bots 40896 | -1/Command | Spotted Combat Programmer 40959 | -1/Command | Met MAIN.C 40966 | -1/Command | 0b10 Conduit disabled 41000 | -1/Command | Destroyed MAIN.C Shell 41001 | -1/Command | Surrendered to MAIN.C 41001 | -1/Command | Loaded intel: 59 machine locations 41001 | -1/Command | Loaded intel: 126 trap records 41001 | -1/Command | Identified exit to Surface 41001 | -1/Command | Discovered exit to Surface (range 42) 41001 | -1/Command | Discovered exit to Surface (range 88) 41031 | -1/Command | Lost 7 parts (2p3n2u) 41138 | -1/Command | MAIN.C activated Command garrisons 41138 | -1/Command | Found Prototype Device 41138 | -1/Command | Identified Exp. Weapon Cycler 41141 | -1/Command | Found Prototype Device 41141 | -1/Command | Identified Exp. ECM Suite 41144 | -1/Command | Found Prototype Device 41144 | -1/Command | Identified Exp. System Purifier 41147 | -1/Command | Found Prototype Device 41160 | -1/Command | Found Prototype Protection 41166 | -1/Command | Found Prototype Reactor 41166 | -1/Command | Identified Zero-point Reactor 41170 | -1/Command | Found Prototype Reactor 41170 | -1/Command | Identified Vortex Chain Reactor 41177 | -1/Command | Unknown forces attacked Command 41186 | -1/Command | Identified Beam Splitter 41198 | -1/Command | Spotted EQ-000 41200 | -1/Command | Identified Centrium Heavy Armor Plating 41218 | -1/Command | Destroyed EQ-000 41258 | -1/Command | Spotted EQ-018 41281 | -1/Command | Destroyed EQ-018 41283 | -1/Command | Spotted EQ-019 41304 | -1/Command | Destroyed EQ-019 41329 | -1/Command | Spotted EQ-036 41339 | -1/Command | Destroyed EQ-036 41344 | -1/Command | Spotted EQ-025 41355 | -1/Command | Destroyed EQ-025 41371 | -1/Command | Spotted EQ-038 41375 | -1/Command | Destroyed EQ-038 41395 | -1/Command | Spotted EQ-058 41399 | -1/Command | Destroyed EQ-058 41409 | -1/Command | Spotted EQ-053 41410 | -1/Command | Core integrity fell below 20% 41416 | -1/Command | Destroyed EQ-053 41420 | -1/Command | Spotted EQ-017 41420 | -1/Command | Spotted EQ-042 41422 | -1/Command | Destroyed EQ-017 41425 | -1/Command | Destroyed EQ-042 41430 | -1/Command | Spotted EQ-052 41461 | -1/Command | Lost 3 parts (2n1u) 41488 | -1/Command | Spotted EQ-078 41488 | -1/Command | Spotted EQ-072 41488 | -1/Command | Spotted EQ-071 41490 | -1/Command | Destroyed EQ-078 41496 | -1/Command | Spotted EQ-049 41496 | -1/Command | Spotted EQ-075 41498 | -1/Command | Destroyed EQ-072 41502 | -1/Command | Destroyed EQ-049 41534 | -1/Command | Lost 11 allies 41541 | -1/Command | Spotted EQ-083 41556 | -1/Command | Spotted EQ-065 41559 | -1/Command | Destroyed Combat Programmer 41561 | -1/Command | Destroyed EQ-065 41564 | -1/Command | Spotted EQ-064 41568 | -1/Command | Spotted EQ-063 41575 | -1/Command | Destroyed EQ-063 41580 | -1/Command | Destroyed EQ-064 41589 | -1/Command | Spotted EQ-092 41589 | -1/Command | Spotted EQ-084 41589 | -1/Command | Spotted EQ-091 41590 | -1/Command | Spotted EQ-085 41602 | -1/Command | Lost 3 parts (1n2u) 41681 | -1/Command | Spotted EQ-096 41684 | -1/Command | Spotted EQ-102 41685 | -1/Command | Spotted EQ-089 41689 | -1/Command | Spotted EQ-094 41691 | -1/Command | Spotted EQ-104 41693 | -1/Command | Destroyed EQ-089 41695 | -1/Command | Destroyed EQ-096 41699 | -1/Command | Destroyed EQ-094 41704 | -1/Command | Spotted EQ-110 41704 | -1/Command | Spotted EQ-111 41709 | -1/Command | Spotted EQ-100 41723 | -1/Command | Spotted EQ-119 41725 | -1/Command | Destroyed EQ-104 41725 | -1/Command | Spotted EQ-074 41732 | -1/Command | Destroyed EQ-100 41738 | -1/Command | Spotted EQ-118 41741 | -1/Command | Lost 15 allies 41744 | -1/Command | Lost 4 parts (1p3u) 41752 | -1/Command | Spotted EQ-127 41758 | -1/Command | Spotted EQ-137 41766 | -1/Command | Attackers retreated from Command 41766 | *** | Fortifying 0b10! Last Messages --------------- 41753_ EQ-118 destroyed. 41754_ M Guard suffers critical hit (Destroy). 41755_ EQ-127 knocked back. 41758_ EQ-127 destroyed. 41760_ The unstable cave ceiling collapses. 41761_ EQ-137 suffers critical hit (Blast). 41761_ EQ-137 knocked back. 41761_ Slug penetrates EQ-137. 41762_ Destroyed Adv. Particle Charger. 41763_ The unstable cave ceiling collapses. 41763_ Slug penetrates Earth. 41763_ Slug penetrates EQ-137. 41764_ The unstable cave ceiling collapses. 41764_ EQ-137 knocked back. 41766_ ALERT: Enemy forces retreating. MAIN.C: I admit your assistance was pivotal here. It looks like I was right to trust you. This attack appears to have been designed to merely test our defenses, although it was nearly effective enough to force me to take the conflict to the next level. Investigating the origins of these bots should be one of our highest priorities... Map ----- +----------------------------------------------------+ | """" #??#! #??????????????????????? | | """" #??# #??????????????????????? | | """" #??######??????????????????????? | | ^""" #######??????????????????????????????? | | #######??????????????????????????????? | | #??????????????????????????????? | | #??????????????????????????????? | | ## #?????????###################### | | ## ### % ###???????#????????????????????? | | ########?# % # ##??????#?#################### | | ## #???#!%% # #??????#?#"" """ | | ## < #??## = # #??????#?# "" !! | | #?##" ??????#?# "" !%! ] | | #?# %] % ##????#?# """ !===! | | ############ #????#?# " %*%=! | | ?????????## ####?#?# =[!=[%% | | ?????????# ###?# ![!%==%* | | ?????????# #?# [!!!*% | | ???????### = #?# %*%!][% | | ########"" * #?#[% = [%%= = | | ! ! #?# % [% | | ! #?# % % ! ! | | % #?# = %=!%% [% | | ########"" # % 7 #?# ! % ! * !%* | | ????# #### [%= %! [ | | ##### Y @ BB [ [ ! ! % | | + + M BB [!% %% | | #### Y % % | | #??# == ##### | | #??# = # # "" " | | #??##### ### " " | | ########## % # #?#################### | | + !%* = #????????????????????? | | ##### *% ###################### | | #???# ! ! #????????????????????? | | ##???# = #????????????????????? | | #???######## ##????????????????????? | | #??????????# # ###?????????????????????? | | #?????????# =#???????????????????????? | | ############ # % %#???????????????????????? | | ## *#???????????????????????? | | ## # % ##?????????????????????? | | ### % #?????????????????????? | | / *% #?????????????????????? | | ### != =** ^ ###?????????????????????? | | ??# =/%%!= #???????????????????????? | | ??# #! = "#???????????????????????? | | ??# #=! "#???????????????????????? | | ??# # "#???????????????????????? | | ??# # T#???????????????????????? | +----------------------------------------------------+ Best States ------------- Heat Dissipation 170 Energy Generation 83 Energy Capacity 2400 Matter Stores 508 Matter Capacity 600 Sight Range 24 Robot Scan Range 18 Terrain Scan Density 10 ECM Strength 2 Jamming Range 22 Corruption Block 8 Armor Coverage 1200 Resistance: KI 10 Resistance: TH 75 Core Shielding 40 Utility Shielding 66 Weapon Cycling 30 Evasion (%) 75 Targeting Accuracy 20 Melee Accuracy 12 Core Analysis 8 Recoil Reduction 5 Energy Filtering 45 Kinecelleration 40 Offensive Hacking 46 Defensive Hacking 16 Trap Extractor Capacity 6 Item Schematics ----------------- Hcp. Storage Unit | -10/Materials | Hacked Spk. Medium Treads | -9/Scraptown | Extrapolated Machine Rigger | -9/Scraptown | Extrapolated Mak. Coolant Network | -9/Scraptown | Extrapolated Spk. Treads | -9/Scraptown | Extrapolated Mak. Light Armor Plating | -9/Scraptown | Extrapolated Hvy. Battle Rifle | -9/Scraptown | Extrapolated Mak. Kinetic Plating | -9/Scraptown | Extrapolated Enh. Flamer | -9/Scraptown | Extrapolated Mak. Leg | -9/Scraptown | Extrapolated Vmp. Humpback | -9/Scraptown | Extrapolated Vmp. Brace Plating | -9/Scraptown | Extrapolated Mak. Medium Armor Plating | -9/Scraptown | Extrapolated Mak. Ablative Armor | -9/Scraptown | Extrapolated Hvy. Beamcaster | -6/Factory | Extrapolated Beamcaster | -6/Factory | Extrapolated Energy Deflector | -6/Factory | Extrapolated Mak. Salvage Targeting Computer | -6/Factory | Extrapolated 0b10 Decoder Chip [Generic] | -6/Factory | Extrapolated 0b10 Decoder Chip [Scout] | -6/Factory | Extrapolated 0b10 Decoder Chip [Skirmisher] | -6/Factory | Extrapolated Mak. Weapon Shielding | -6/Factory | Extrapolated Mak. Power Source | -6/Factory | Extrapolated Mak. Heavy Armor Plating | -6/Factory | Extrapolated Mak. Targeting Computer | -6/Factory | Extrapolated Mak. Thermal Plating | -6/Factory | Extrapolated Mak. System Restoration Module | -6/Factory | Extrapolated Mak. Shrapnel Gun | -6/Factory | Extrapolated Multitool | -6/Factory | Extrapolated Mak. Hammer | -6/Factory | Extrapolated Bore Cannon | -6/Factory | Extrapolated Mak. Spear | -6/Factory | Extrapolated Mak. Terrain Scanner | -6/Factory | Extrapolated Mak. Core Shielding | -6/Factory | Extrapolated Mak. Laser | -6/Factory | Extrapolated Mak. Trap Scanner | -6/Factory | Extrapolated Humpback | -6/Factory | Scanalyzed Hacking Suite | -6/Factory | Scanalyzed Hvy. Deuterium Engine | -6/Factory | Scanalyzed Tactical Coordination Suite | -6/Factory | Extrapolated Plasma Flamer | -6/Lower Caves | Extrapolated Slug Cannon | -6/Lower Caves | Extrapolated Recoil Nullifier | -6/Zion | Archive Phase Cannon | -6/Zion | Archive Adv. Melee Analysis Suite | -6/Zion | Archive Adv. Shield Generator | -6/Zion | Archive Imp. Shock Absorption System | -6/Zion | Archive Angular Momentum Engine | -6/Zion | Archive Adv. Transmission Jammer | -6/Zion | Archive Thermic Laser | -6/Zion | Archive Adv. Hacking Suite | -6/Zion | Archive Adv. Field Recycling Unit | -6/Zion | Archive Hpw. Shock Rifle | -6/Zion | Archive Imp. Recalibrator | -6/Zion | Archive Hvy. Plasma Cannon | -6/Zion | Archive Adv. Cryofiber Web | -6/Zion | Archive Mak. Hacking Suite | -6/Zion | Extrapolated Mak. System Shield | -6/Zion | Extrapolated Arc Thrower | -6/Zion | Extrapolated Mak. Terrain Scan Processor | -6/Zion | Extrapolated Heat Bomb Trap | -5/Proximity Caves | Extrapolated Mapping Drone Bay | -5/Factory | Scanalyzed Mak. ECM Suite | -5/Factory | Extrapolated Mak. Flight Unit | -5/Factory | Extrapolated Mak. Transmission Jammer | -5/Factory | Extrapolated Mak. Propulsion Shielding | -5/Factory | Extrapolated Phasing Sabre | -5/Factory | Extrapolated Mak. Sensor Array | -5/Cetus | Extrapolated Lgt. Neutrino Core | -4/Factory | Scanalyzed Particle Accelerator | -4/Factory | Scanalyzed Exp. Optical Array | -3/Research | Scanalyzed Imp. Diametric Drive | -3/Research | Scanalyzed Variable Charge Gun | -3/Research | Extracted Imp. Focal Shield | -3/Research | Extracted Reflective Plating | -3/Research | Extracted Lyr. Medium Armor Plating | -3/Research | Extracted Exp. Utility Shielding | -3/Research | Hacked Com. Particle Reactor | -3/Research | Scanalyzed Cmb. Antigrav System | -3/Testing | Hacked Cmb. Linear Gravjet | -3/Testing | Hacked Imp. Energy Mantle | -3/Testing | Archive Enh. Biometal Leg | -3/Testing | Archive Exp. Matter Compressor | -3/Testing | Archive Plasma Lance | -3/Testing | Archive Exp. Field Recycling Unit | -3/Testing | Archive Femtoactuators | -3/Testing | Hacked Exp. Signal Interpreter | -3/Testing | Hacked Imp. Matter Neutralizer | -3/Testing | Scanalyzed Centrium Light Armor Plating | -3/Testing | Scanalyzed Exp. Actuator Array | -3/Testing | Hacked Exp. Core Analyzer | -2/Section 7 | Hacked Exp. Force Field | -2/Section 7 | Scanalyzed Robot Schematics ------------------ E-15 Imp | -6/Zion | Archive R-06 Scavenger | -6/Zion | Archive S-27 Virus | -6/Zion | Archive L-61 Swordsman | -6/Zion | Archive R-10 Processor | -3/Testing | Archive Fabricated ------------ Imp. Heavy Treads | x1 | -6/Factory | Preloaded Vmp. Brace Plating | x1 | -6/Factory Multitool | x1 | -6/Factory Vmp. Humpback | x1 | -6/Factory Tactical Coordination Suite | x1 | -5/Factory Multitool | x1 | -3/Research Cmb. Antigrav System | x2 | -3/Testing Cmb. Antigrav System | x2 | -3/Testing Exp. Signal Interpreter | x1 | -2/Research Heat Bomb Trap | x2 | -1/Access Alien Tech Used ----------------- Dimensional Node Initializer Integrated Dissipator Spacefold Activator LRC Armor LRC Energy Well Sigix Sheargun High-powered Transdimensional Reconstructor Core Expander Transdimensional Reconstructor Sigix Shearcannon Subatomic Replicator Core Physics Calibrator Achievements -------------- None Challenges ------------ None Game ------ Seed OvertunedChainPenetrator Manual? 0 Play Time 11:28:22 Cumulative 755.1 hours Start 2024.08.14 @ 00:55:30 End 2024.08.16 @ 01:15:26 Sessions 7 Manual Loads 0 Difficulty Rogue Special Mode None Game No. 149 Rogue 149 Adventurer 0 Explorer 0 Win Type 8 Total 44 Types 22/4/6/1/2/1/4/2/2 Lore% 80 Gallery% 91 Achievement% 91 Wizard Run 0 Options --------- Layout 0 ASCII 0 Keyboard 0 Movement Numpad Keybinds 0 Fullscreen 1 Font 14/SmallcapsGlow Map View 84x54 Zoom Use 0% Tactical HUD 1 Map Filters NONE Filters NONE Steam 1 RUN: f3073074-e49a-4f5b-892d-11b3ac86cc1f